Workbook

Sheet Sublot 1
A1: v 1.17 | B1: OKLAHOMA DEPARTMENT OF TRANSPORTATION
A2: SUPERPAVE
A3: McALESTER RESIDENCY
A4: HOT MIX ASPHALT SAMPLE SHEET
P5: INFORMATION FROM MIX DESIGN:
A6: Project No. | F6: J.P. No. | J6: Contract No.
A7: Contractor | F7: Producer | J7: Plant Location
A8: SM Sample ID | F8: Mix Type | J8: Design No. | O8: PG64 | P8: Million ESALs or PG Grade: Select from drop-down list.
B10: EXTRACTIONS AND GRADATIONS | H10: IOC | J10: TOTAL TONS for this SubLOT
B11: (OHD L-26, AASHTO T-30, T-11) | J11: Gse from Design | L11: (Gse >= Gsb)
B12: Time | D12: Date | H12: Specimen Wt. | J12: Gsb from Design | O12: A | P12: Rices Precision: Select from drop-down list.
B13: Temperature | D13: Lot | E13: 1 | F13: SubLot | G13: 1 | J13: Spec. Grav. AC from Design | O13: =VLOOKUP(O12,PTable,2,FALSE) -> 0.014 | P13: Method A - Mechanical or Method B - Manual
B14: SIEVE | C14: JMF | D14: Acc. Wt. | E14: Acc. % | F14: Total Agg. | I14: MAXIMUM SPECIFIC GRAVITY (AASHTO T209)
B15: SIZE | D15: Retd. | E15: Retd. | F15: % Passing | G15: Dev. | I15: Sub-Lot No. | P15: Limits | S15: Tolerance
B16: 1 1/2" (37.5 mm) | E16: =IF(D16="","",ROUND(D16/$E$34*100,Tables!$E$51)) ->  | F16: =IF(D16="","",100-E16) ->  | G16: =IF(D16="","",ABS(C16-F16)) ->  | I16: Sample No. | K16: 1 | L16: | | M16: 2 | O16: 1 1/2" (37.5 mm) | P16: =IF(C16="","",C16-S16) ->  | Q16: =IF(C16="","",IF(C16+S16>100,100,C16+S16)) ->  | S16: 0
B17: 1" (25.0 mm) | E17: =IF(D17="","",ROUND(D17/$E$34*100,Tables!$E$51)) ->  | G17: =IF(D17="","",ABS(C17-F17)) ->  | I17: Flask No. | L17: | | O17: 1" (25.0 mm) | S17: 0
B18: 3/4" (19.0 mm | E18: =IF(D18="","",ROUND(D18/$E$34*100,Tables!$E$51)) ->  | G18: =IF(D18="","",ABS(C18-F18)) ->  | I18: Sample Wt. | J18: (A) | L18: | | O18: 3/4" (19.0 mm | S18: 7
B19: 1/2" (12.5 mm) | E19: =IF(D19="","",ROUND(D19/$E$34*100,Tables!$E$51)) ->  | G19: =IF(D19="","",ABS(C19-F19)) ->  | I19: Calib. Wt. | J19: (B) | L19: | | O19: 1/2" (12.5 mm) | S19: 7
B20: 3/8" (9.5 mm) | E20: =IF(D20="","",ROUND(D20/$E$34*100,Tables!$E$51)) ->  | I20: A + B | J20: (C) | K20: =IF(K18="","",+K18+K19) ->  | L20: | | M20: =IF(M18="","",+M18+M19) ->  | O20: 3/8" (9.5 mm) | S20: 7
B21: # 4 ( 4.75 mm) | E21: =IF(D21="","",ROUND(D21/$E$34*100,Tables!$E$51)) ->  | I21: Sample + Flask + H²O (D) | L21: | | O21: # 4 ( 4.75 mm) | S21: 7
B22: # 8 (2.36 mm) | E22: =IF(D22="","",ROUND(D22/$E$34*100,Tables!$E$51)) ->  | I22: C - D | J22: (E) | K22: =IF(K20="","",+K20-K21) ->  | L22: | | M22: =IF(M20="","",+M20-M21) ->  | O22: # 8 (2.36 mm) | S22: 5
B23: # 16 ( 1.18 mm) | E23: =IF(D23="","",ROUND(D23/$E$34*100,Tables!$E$51)) ->  | I23: Rice's Gravity | J23: (A/E) | K23: =IF(K18>0,ROUND(K18/K22,Tables!$E$64),"") ->  | L23: | | M23: =IF(M18>0,ROUND(M18/M22,Tables!$E$64),"") ->  | O23: # 16 ( 1.18 mm) | S23: 4
B24: # 30 (.600 mm) | E24: =IF(D24="","",ROUND(D24/$E$34*100,Tables!$E$51)) ->  | I24: Avg. Rice Gravity (Gmm) | L24: =IF(K23="","",ROUND(AVERAGE(K23,M23),Tables!$E$65)) ->  | M24: =IF(K23="","",IF(ABS(K23-M23)>O13,"ERR","")) ->  | O24: # 30 (.600 mm) | S24: 4
B25: # 50 (.300 mm) | E25: =IF(D25="","",ROUND(D25/$E$34*100,Tables!$E$51)) ->  | I25: Eff. Spec. Grav. (Gse) | L25: =IF(K18>0,ROUND((100-F30)/((100/L24)-(F30/$I$13)),Tables!$E$66),"") ->  | O25: # 50 (.300 mm) | S25: 4
B26: # 100 (.150 mm) | E26: =IF(D26="","",ROUND(D26/$E$34*100,Tables!$E$51)) ->  | J26: =IF(K23="","",IF(ABS(K23-M23)>O13,"ERR = Precision Out of Tolerance","")) ->  | O26: # 100 (.150 mm) | S26: 3
B27: # 200 (.075 mm) | I27: LAB MOLDED DENSITY (OHD L-8, L-14) @ Ndes
B28: Total -200 (W3) | F28: =IF(E34="","",ROUND((E38/E34)*100,Tables!$E$52)) ->  | G28: =IF(D27="","",ABS(C27-F28)) ->  | I28: New Gsb ( calculated ) | L28: =IF(L25="","",ROUND(IF(I11="","",(I12/I11)*L25),Tables!$E$68)) ->  | O28: Total -200 (W3) | P28: =IF(C27="","",C27-S28) ->  | Q28: =IF(C27="","",C27+S28) ->  | S28: 2
B29: % AC (P5m) | I29: Spec. Grav. AC | L29: =IF(K33="","",$I13) -> 
B30: Corrected %AC | F30: =IF(D29="","",ROUND(((((D29*F43)/100)-(F43-F44))/F44)*100,Tables!$E$53)) ->  | G30: =IF(D29="","",IF(ABS(C29-F30)>S30,ROUND(ABS(C29-F30),Tables!$E$33),0)) ->  | I30: % AC | L30: =IF(K33="","",+F30) ->  | O30: Corrected %AC | P30: =IF(C29="","",C29-S30) ->  | Q30: =IF(C29="","",C29+S30) ->  | S30: 0.4
B31: Basket (A) | I31: Max. Theo. Spec. Grav. | L31: =IF(L24="","",ROUND(L24,Tables!$E$69)) -> 
B32: Basket + Mix (B) | I32: Specimen No. | K32: 1 | L32: 2
B33: Mix (B-A) | E33: =IF(E31="","",+E32-E31) ->  | I33: A (Wt. Spec. in Air)
B34: Extr. Aggr. Wt (C) | D34: =IF(D31="","",+D31+D32) ->  | I34: C (Wt. Spec. in Water
B35: Washed Wt (D) | I35: B (Wt. Spec. S.S.D.)
B36: Pan Matl (E) | I36: B - C | K36: =IF(K33="","",+K35-K34) ->  | L36: =IF(L33="","",+L35-L34) ->  | M36: =IF(M33="","",+M35-M34) -> 
B37: Wt of Loss by Washing (W1) | E37: =IF(E35="","",E34-E35) ->  | I37: L.M. Spec. Grav. - Gmb | K37: =IF(K33=0,"",ROUND((K33/K36),Tables!$E$70)) ->  | L37: =IF(L33=0,"",ROUND((L33/L36),Tables!$E$70)) ->  | M37: =IF(M33=0,"",ROUND((M33/M36),Tables!$E$70)) -> 
B38: Total Agg. Passing 200 (W2) | E38: =IF(E36="","",+E37+E36) ->  | I38: Avg. L.M. Spec. Grav. | L38: =IF(K37="","",ROUND(AVERAGE(K37,L37,M37),Tables!$E$71)) -> 
B39: Precision (+/- 0.2 %) | E39: =IF(E35="","",ROUND(((E35-(D27+E36))/E35)*100,Tables!$E$54)) ->  | I39: % L.M. Density @ Ndes | L39: =IF(L38="","",ROUND(L38/L31*100,Tables!$E$72)) ->  | M39: =IF(L39="","",IF(OR(ROUND(L39,1)<O39,ROUND(L39,1)>Q39),"ERR","")) ->  | O39: 94.5 | P39: - | Q39: 97.4 | R39: Enter %Density of GMM reqd. as listed on JMF
I40: % Air Voids | L40: =IF(L39="","",ROUND(100-(L38/L31*100),Tables!$E$73)) ->  | M40: =IF(L40="","",ABS(O40-L40)) ->  | O40: 4 | Q40: %Air Voids Target | T40: (Superpave, SMA) = 4%, (RBL) = 2%
B41: MOISTURE & VOLATILE SAMPLE | I41: % V.M.A. | L41: =IF(L38="","",IF(L38>0,ROUND(100-L38*(100-L30)/L28,Tables!$E$74),Tables!E74)) ->  | M41: =IF(L41="","",IF(L41<O41,"ERR","")) ->  | O41: 14 | Q41: Enter required field VMA from mix design.
B42: Pan | I42: =IF(M39="ERR","% L.M. Density out of range","") ->  | L42: =IF(M41="ERR"," %VMA out of range","") -> 
B43: Original Mix (W1m) | F43: =IF(E43="","",E43-E42) ->  | I43: Lab Molded Specimen @ Ndes | J43: # of Gyrations | K43: Specimen Height | L43: LSMG Ratio x LSMG @ Ndes) | M43: % Density (LSMG x 100 / Rice's)
B44: Dry Mix (W5m) | F44: =IF(E44="","",E44-E42) -> 
I45: Nini | J45: =VLOOKUP(O8,GTable,2,FALSE) -> 6 | L45: =IF(K45="","",ROUND((K46/K45),Tables!$E$59)*ROUND(L46,Tables!$E$60)) ->  | M45: =IF(AND(L46<>"",OR(K45="",K46="")),"ERR",IF(K46="","",ROUND(((L45*100)/$L$24),Tables!$E$61))) ->  | O45: =VLOOKUP(O8,GTable,5) -> 85.5 | P45: Nini Minimun Requirement
B46: SAND EQUIVALENT (AASHTO T-176) | I46: Ndes | J46: =VLOOKUP(O8,GTable,3,FALSE) -> 50 | L46: =IF(K46="","",L38) ->  | M46: =IF(K46="","",ROUND(((L46*100)/$L$24),Tables!$E$62)) ->  | O46: =VLOOKUP(O8,GTable,7) -> 91.5 | P46: Nini Maximum Requirement
B47: S.E. No. | D47: 1 | E47: 2 | F47: =+IF(F48="","",3) ->  | I47: =(IF(M46="","",IF(OR($M$45="ERR",OR($M45>$O46,$M$45<$O$45))," Fails Nini Requirements",""))) -> 
B48: Sand Reading | I48: ROADWAY DENSITY (OHD L-14 / OHD L-45)
B49: Clay Reading | H49: =IF(O49=1,"OHD L-14","") ->  | I49: =IF(O49=""," Avg. Rice Gravity"," Max. Theo. at JMF AC") -> Avg. Rice Gravity | L49: =IF(K58="","",IF(O49=1,ROUND((100/(($C29/$I$13)+(100-$C29)/L25)),Tables!$E$56),$L$24)) ->  | M49: Gmm | Q49: = 1 if density by PGmm by Pb at JMF in 411 pay table, else leave blank.
B50: Sand Equivalent | D50: =IF(D49="","",ROUNDUP(MROUND(D48/D49*100,0.1),0)) ->  | E50: =IF(E49="","",ROUNDUP(MROUND(E48/E49*100,0.1),0)) ->  | F50: =IF(F49="","",ROUNDUP(MROUND(F48/F49*100,0.1),0)) ->  | H50: =IF(O49=1,"05/27/08","") ->  | I50: Specimen No.
B51: Average Sand Equivalent | E51: =IF(D50="","",ROUNDUP(MROUND(SUM(D50:F50)/COUNT(D50:F50),0.1),0)) ->  | I51: Station
C52: =IF(E51=0,"",IF(E51<O51," Fails Minimum S.E. Requirements","")) ->  | I52: Expressway
B53: DENSITY TEST FOR ROADWAY CORES (OHD L-45) | I53: Lane
B54: A (Wt. Dry Spec. in Air) | D54: =IF(N(K61)>2,K58,"") ->  | E54: =IF(N(L61)>2,L58,"") ->  | F54: =IF(N(M61)>2,M58,"") ->  | I54: Thickness (in.)
B55: Bag Weight | I55: Initial Wt. Spec. in Air
B56: B (Sealed Wt. in Air) | D56: =IF(D54="","",D54+D55) ->  | E56: =IF(E54="","",E54+E55) ->  | F56: =IF(F54="","",F54+F55) ->  | I56: C (Wt. Spec. in Water) | O56: 45 | P56: Minimum S.E. Requirement
B57: E (Sealed Spec. Wt. in H2O) | I57: B (Wt. Spec. S.S.D.)
B58: C (Final Wt. Dry Spec. in Air) | I58: A (Wt. Dry Spec. in Air)
B59: F (Bag's Gsa) | D59: =IF(OR(D58="",D54=""),"",IF((D55)>=35,0.8596-((0.00166*D54)/(D55)),IF((D55)<35,0.8121-((0.000566*D54)/(D55)),"ERR"))) ->  | E59: =IF(OR(E58="",E54=""),"",IF((E55)>=35,0.8596-((0.00166*E54)/(E55)),IF((E55)<35,0.8121-((0.000566*E54)/(E55)),"ERR"))) ->  | F59: =IF(OR(F58="",F54=""),"",IF((F55)>=35,0.8596-((0.00166*F54)/(F55)),IF((F55)<35,0.8121-((0.000566*F54)/(F55)),"ERR"))) ->  | I59: B - C | K59: =IF(K58="","",+K57-K56) ->  | L59: =IF(L58="","",+L57-L56) ->  | M59: =IF(M58="","",+M57-M56) -> 
B60: Core Spec. Grav. ( Gmb ) | D60: =IF(OR(D54="",D55=""),"",ROUND(D54/(D58+D55-D57-(D55)/D59),Tables!$E$37)) ->  | E60: =IF(OR(E54="",E55=""),"",ROUND(E54/(E58+E55-E57-(E55)/E59),Tables!$E$37)) ->  | F60: =IF(OR(F54="",F55=""),"",ROUND(F54/(F58+F55-F57-(F55)/F59),Tables!$E$37)) ->  | I60: Core Spec. Grav. ( Gmb ) | K60: =IF(K59="","",ROUND((K58/K59),Tables!$E$77)) ->  | L60: =IF(L59="","",ROUND((L58/L59),Tables!$E$77)) ->  | M60: =IF(M59="","",ROUND((M58/M59),Tables!$E$77)) ->  | O60: =COUNT(K60:M60) -> 0 | P60: No. of Cores
D61: =IF(D58="","",IF(AND(D54-D58<D54*0.0008,D58-D54<=D54*0.0004),"","REDO")) ->  | E61: =IF(E58="","",IF(AND(E54-E58<E54*0.0008,E58-E54<=E54*0.0004),"","REDO")) ->  | F61: =IF(F58="","",IF(AND(F54-F58<F54*0.0008,F58-F54<=F54*0.0004),"","REDO")) ->  | I61: % Absorption | K61: =IF(K56="","",ROUND((K57-K58)/(K57-K56)*100,Tables!$E$78)) ->  | L61: =IF(L58="","",ROUND((L57-L58)/(L57-L56)*100,Tables!$E$78)) ->  | M61: =IF(M58="","",ROUND((M57-M58)/(M57-M56)*100,Tables!$E$78)) -> 
D62: =IF(D60<>"",D60,K60) ->  | E62: =IF(E60<>"",E60,L60) ->  | F62: =IF(F60<>"",F60,M60) ->  | I62: Avg. Core Sp. Gr. ( Gmb ) | L62: =IF(K60="","",ROUND(AVERAGE(D62:F62),Tables!$E$79)) -> 
I63: % Roadway Density | K63: =IF(K64="","",IF(K64="L-14",ROUND(K60/$L$49*100,Tables!$E$80),ROUND(D62/$L$49*100,Tables!$E$80))) ->  | L63: =IF(L64="","",IF(L64="L-14",ROUND(L60/$L$49*100,Tables!$E$80),ROUND(E62/$L$49*100,Tables!$E$80))) ->  | M63: =IF(M64="","",IF(M64="L-14",ROUND(M60/$L$49*100,Tables!$E$80),ROUND(F62/$L$49*100,Tables!$E$80))) -> 
I64: Density Test Method | K64: =IF(K58="","",IF(AND(K61>2,D60>0),"L-45 ","L-14 ")) ->  | L64: =IF(L58="","",IF(AND(L61>2,E60>0),"L-45 ","L-14 ")) ->  | M64: =IF(M58="","",IF(AND(M61>2,F60>0),"L-45 ","L-14 ")) -> 
B65: Signature / Cert. ID | E65: / | I65: % Avg. Roadway Density | L65: =IF(L49="","",IF(L49>0,ROUND(L62/L49*100,Tables!$E$81),"")) -> 
I66: =IF(OR(N(K61)>2,N(L61)>2,N(M61)>2),"A core absorption is > 2.0%. OHD L-45 is required for it.","") -> 
J67: =IF(L65="","",IF(OR(L65>97,L65<88.1)," Fails Roadway Density Requirements","")) -> 

Sheet Sublot 2
A1: ='Sublot 1'!A1 -> v 1.17 | B1: OKLAHOMA DEPARTMENT OF TRANSPORTATION
A2: SUPERPAVE
A3: ='Sublot 1'!A3:N3 -> McALESTER RESIDENCY
A4: HOT MIX ASPHALT SAMPLE SHEET
P5: INFORMATION FROM MIX DESIGN:
A6: Project No. | B6: =IF('Sublot 1'!B6="","",'Sublot 1'!B6) ->  | F6: J.P. No. | G6: =IF('Sublot 1'!G6="","",'Sublot 1'!G6) ->  | J6: Contract No. | L6: =IF('Sublot 1'!L6="","",'Sublot 1'!L6) -> 
A7: Contractor | B7: =IF('Sublot 1'!B7="","",'Sublot 1'!B7) ->  | F7: Producer | G7: =IF('Sublot 1'!G7="","",'Sublot 1'!G7) ->  | J7: Plant Location | L7: =IF('Sublot 1'!L7="","",'Sublot 1'!L7) -> 
A8: ='Sublot 1'!A8 -> SM Sample ID | F8: Mix Type | G8: =IF('Sublot 1'!G8="","",'Sublot 1'!G8) ->  | J8: Design No. | L8: =IF('Sublot 1'!L8="","",'Sublot 1'!L8) ->  | O8: ='Sublot 1'!O8 -> PG64 | P8: Million ESALs or PG Grade: Select from drop-down list.
B10: EXTRACTIONS AND GRADATIONS | H10: IOC | J10: TOTAL TONS for this SubLOT
B11: (OHD L-26, AASHTO T-30, T-11) | H11: =IF('Sublot 1'!H11="","",'Sublot 1'!H11) ->  | I11: ='Sublot 1'!I11 ->  | J11: Gse from Design | L11: (Gse >= Gsb)
B12: Time | D12: Date | H12: Specimen Wt. | I12: ='Sublot 1'!I12 ->  | J12: Gsb from Design | O12: A | P12: Rices Precision: Select from drop-down list.
B13: Temperature | D13: Lot | E13: =IF('Sublot 1'!E13="","",'Sublot 1'!E13) -> 1 | F13: SubLot | G13: 2 | H13: =IF('Sublot 1'!H13="","",'Sublot 1'!H13) ->  | I13: ='Sublot 1'!I13 ->  | J13: Spec. Grav. AC from Design | O13: =VLOOKUP(O12,PTable,2,FALSE) -> 0.014 | P13: Method A - Mechanical or Method B - Manual
B14: SIEVE | C14: JMF | D14: Acc. Wt. | E14: Acc. % | F14: Total Agg. | I14: MAXIMUM SPECIFIC GRAVITY (AASHTO T209)
B15: SIZE | D15: Retd. | E15: Retd. | F15: % Passing | G15: Dev. | I15: Sub-Lot No. | P15: Limits | S15: Tolerance
B16: 1 1/2" (37.5 mm) | C16: ='Sublot 1'!C16 ->  | E16: =IF(D16="","",ROUND(D16/$E$34*100,Tables!$E$51)) ->  | F16: =IF(D16="","",100-E16) ->  | G16: =IF(D16="","",ABS(C16-F16)) ->  | I16: Sample No. | K16: 1 | L16: | | M16: 2 | O16: 1 1/2" (37.5 mm) | P16: =IF(C16="","",C16-S16) ->  | Q16: =IF(C16="","",IF(C16+S16>100,100,C16+S16)) ->  | S16: 0
B17: 1" (25.0 mm) | C17: ='Sublot 1'!C17 ->  | E17: =IF(D17="","",ROUND(D17/$E$34*100,Tables!$E$51)) ->  | G17: =IF(D17="","",ABS(C17-F17)) ->  | I17: Flask No. | L17: | | O17: 1" (25.0 mm) | S17: 0
B18: 3/4" (19.0 mm | C18: ='Sublot 1'!C18 ->  | E18: =IF(D18="","",ROUND(D18/$E$34*100,Tables!$E$51)) ->  | G18: =IF(D18="","",ABS(C18-F18)) ->  | I18: Sample Wt. | J18: (A) | L18: | | O18: 3/4" (19.0 mm | S18: 0
B19: 1/2" (12.5 mm) | C19: ='Sublot 1'!C19 ->  | E19: =IF(D19="","",ROUND(D19/$E$34*100,Tables!$E$51)) ->  | G19: =IF(D19="","",ABS(C19-F19)) ->  | I19: Calib. Wt. | J19: (B) | L19: | | O19: 1/2" (12.5 mm) | S19: 7
B20: 3/8" (9.5 mm) | C20: ='Sublot 1'!C20 ->  | E20: =IF(D20="","",ROUND(D20/$E$34*100,Tables!$E$51)) ->  | I20: A + B | J20: (C) | K20: =IF(K18="","",+K18+K19) ->  | L20: | | M20: =IF(M18="","",+M18+M19) ->  | O20: 3/8" (9.5 mm) | S20: 7
B21: # 4 ( 4.75 mm) | C21: ='Sublot 1'!C21 ->  | E21: =IF(D21="","",ROUND(D21/$E$34*100,Tables!$E$51)) ->  | I21: Sample + Flask + H²O (D) | L21: | | O21: # 4 ( 4.75 mm) | S21: 7
B22: # 8 (2.36 mm) | C22: ='Sublot 1'!C22 ->  | E22: =IF(D22="","",ROUND(D22/$E$34*100,Tables!$E$51)) ->  | I22: C - D | J22: (E) | K22: =IF(K20="","",+K20-K21) ->  | L22: | | M22: =IF(M20="","",+M20-M21) ->  | O22: # 8 (2.36 mm) | S22: 5
B23: # 16 ( 1.18 mm) | C23: ='Sublot 1'!C23 ->  | E23: =IF(D23="","",ROUND(D23/$E$34*100,Tables!$E$51)) ->  | I23: Rice's Gravity | J23: (A/E) | K23: =IF(K18>0,ROUND(K18/K22,Tables!$E$64),"") ->  | L23: | | M23: =IF(M18>0,ROUND(M18/M22,Tables!$E$64),"") ->  | O23: # 16 ( 1.18 mm) | S23: 4
B24: # 30 (.600 mm) | C24: ='Sublot 1'!C24 ->  | E24: =IF(D24="","",ROUND(D24/$E$34*100,Tables!$E$51)) ->  | I24: Avg. Rice Gravity (Gmm) | L24: =IF(K23="","",ROUND(AVERAGE(K23,M23),Tables!$E$65)) ->  | M24: =IF(K23="","",IF(ABS(K23-M23)>O13,"ERR","")) ->  | O24: # 30 (.600 mm) | S24: 4
B25: # 50 (.300 mm) | C25: ='Sublot 1'!C25 ->  | E25: =IF(D25="","",ROUND(D25/$E$34*100,Tables!$E$51)) ->  | I25: Eff. Spec. Grav. (Gse) | L25: =IF(K18>0,ROUND((100-F30)/((100/L24)-(F30/$I$13)),Tables!$E$66),"") ->  | O25: # 50 (.300 mm) | S25: 4
B26: # 100 (.150 mm) | C26: ='Sublot 1'!C26 ->  | E26: =IF(D26="","",ROUND(D26/$E$34*100,Tables!$E$51)) ->  | J26: =IF(K23="","",IF(ABS(K23-M23)>O13,"ERR = Precision Out of Tolerance","")) ->  | O26: # 100 (.150 mm) | S26: 3
B27: # 200 (.075 mm) | C27: ='Sublot 1'!C27 ->  | I27: LAB MOLDED DENSITY (OHD L-8, L-14) @ Ndes
B28: Total -200 (W3) | F28: =IF(E34="","",ROUND((E38/E34)*100,Tables!$E$52)) ->  | G28: =IF(D27="","",ABS(C27-F28)) ->  | I28: New Gsb ( calculated ) | L28: =IF(L25="","",ROUND(IF(I11="","",(I12/I11)*L25),Tables!$E$68)) ->  | O28: Total -200 (W3) | P28: =IF(C27="","",C27-S28) ->  | Q28: =IF(C27="","",C27+S28) ->  | S28: 2
B29: % AC (P5m) | C29: ='Sublot 1'!C29 ->  | I29: Spec. Grav. AC | L29: =IF(K33="","",$I13) -> 
B30: Corrected %AC | F30: =IF(D29="","",ROUND(((((D29*F43)/100)-(F43-F44))/F44)*100,Tables!$E$53)) ->  | G30: =IF(D29="","",IF(ABS(C29-F30)>S30,ROUND(ABS(C29-F30),Tables!$E$33),0)) ->  | I30: % AC | L30: =IF(K33="","",+F30) ->  | O30: Corrected %AC | P30: =IF(C29="","",C29-S30) ->  | Q30: =IF(C29="","",C29+S30) ->  | S30: 0.4
B31: Basket (A) | I31: Max. Theo. Spec. Grav. | L31: =IF(D29="","",IF($L$24="",ROUND((100/(($F$30/$I$13)+(100-$F$30)/#REF!)),Tables!$E$69),L24)) -> 
B32: Basket + Mix (B) | I32: Specimen No. | K32: 1 | L32: 2
B33: Mix (B-A) | E33: =IF(E31="","",+E32-E31) ->  | I33: A (Wt. Spec. in Air)
B34: Extr. Aggr. Wt (C) | D34: =IF(D31="","",+D31+D32) ->  | I34: C (Wt. Spec. in Water
B35: Washed Wt (D) | I35: B (Wt. Spec. S.S.D.)
B36: Pan Matl (E) | I36: B - C | K36: =IF(K33="","",+K35-K34) ->  | L36: =IF(L33="","",+L35-L34) ->  | M36: =IF(M33="","",+M35-M34) -> 
B37: Wt of Loss by Washing (W1) | E37: =IF(E35="","",E34-E35) ->  | I37: L.M. Spec. Grav. - Gmb | K37: =IF(K33=0,"",ROUND((K33/K36),Tables!$E$70)) ->  | L37: =IF(L33=0,"",ROUND((L33/L36),Tables!$E$70)) ->  | M37: =IF(M33=0,"",ROUND((M33/M36),Tables!$E$70)) -> 
B38: Total Agg. Passing 200 (W2) | E38: =IF(E36="","",+E37+E36) ->  | I38: Avg. L.M. Spec. Grav. | L38: =IF(K37="","",ROUND(AVERAGE(K37,L37,M37),Tables!$E$71)) -> 
B39: Precision (+/- 0.2 %) | E39: =IF(E35="","",ROUND(((E35-(D27+E36))/E35)*100,Tables!$E$54)) ->  | I39: % L.M. Density @ Ndes | L39: =IF(L38="","",ROUND(L38/L31*100,Tables!$E$72)) ->  | M39: =IF(L39="","",IF(OR(ROUND(L39,1)<O39,ROUND(L39,1)>Q39),"ERR","")) ->  | O39: ='Sublot 1'!O39 -> 94.5 | P39: - | Q39: ='Sublot 1'!Q39 -> 97.4 | R39: Enter %Density of GMM reqd. as listed on JMF
I40: % Air Voids | L40: =IF(L39="","",ROUND(100-(L38/L31*100),Tables!$E$73)) ->  | M40: =IF(L40="","",ABS(O40-L40)) ->  | O40: ='Sublot 1'!O40 -> 4 | Q40: %Air Voids Target | T40: (Superpave, SMA) = 4%, (RBL) = 2%
B41: MOISTURE & VOLATILE SAMPLE | I41: % V.M.A. | L41: =IF(L38="","",IF(L38>0,ROUND(100-L38*(100-L30)/L28,Tables!$E$74),Tables!E74)) ->  | M41: =IF(L41="","",IF(L41<O41,"ERR","")) ->  | O41: ='Sublot 1'!O41 -> 14 | Q41: Enter required field VMA from mix design.
B42: Pan | I42: =IF(M39="ERR","% L.M. Density out of range","") ->  | L42: =IF(M41="ERR"," %VMA out of range","") -> 
B43: Original Mix (W1m) | F43: =IF(E43="","",E43-E42) ->  | I43: Lab Molded Specimen @ Ndes | J43: # of Gyrations | K43: Specimen Height | L43: LSMG Ratio x LSMG @ Ndes) | M43: % Density (LSMG x 100 / Rice's)
B44: Dry Mix (W5m) | F44: =IF(E44="","",E44-E42) -> 
I45: Nini | J45: =VLOOKUP(O8,GTable,2,FALSE) -> 6 | L45: =IF(K45="","",ROUND((K46/K45),Tables!$E$59)*ROUND(L46,Tables!$E$60)) ->  | M45: =IF(AND(L46<>"",OR(K45="",K46="")),"ERR",IF(K46="","",ROUND(((L45*100)/$L$24),Tables!$E$61))) ->  | O45: =VLOOKUP(O8,GTable,5) -> 85.5 | P45: Nini Minimun Requirement
B46: SAND EQUIVALENT (AASHTO T-176) | I46: Ndes | J46: =VLOOKUP(O8,GTable,3,FALSE) -> 50 | L46: =IF(K46="","",L38) ->  | M46: =IF(K46="","",ROUND(((L46*100)/$L$24),Tables!$E$62)) ->  | O46: =VLOOKUP(O8,GTable,7) -> 91.5 | P46: Nini Maximum Requirement
B47: S.E. No. | D47: 1 | E47: 2 | F47: =+IF(F48="","",3) ->  | I47: =(IF(M46="","",IF(OR($M$45="ERR",OR($M45>$O46,$M$45<$O$45))," Fails Nini Requirements",""))) -> 
B48: Sand Reading | I48: ROADWAY DENSITY (OHD L-14 / OHD L-45)
B49: Clay Reading | H49: =IF(O49=1,"OHD L-14","") ->  | I49: =IF(O49=""," Avg. Rice Gravity"," Max. Theo. at JMF AC") -> Avg. Rice Gravity | L49: =IF(K58="","",IF(O49=1,ROUND((100/(($C29/$I$13)+(100-$C29)/L25)),Tables!$E$56),$L$24)) ->  | M49: Gmm | Q49: = 1 if density by PGmm by Pb at JMF in 411 pay table, else leave blank.
B50: Sand Equivalent | D50: =IF(D49="","",ROUNDUP(MROUND(D48/D49*100,0.1),0)) ->  | E50: =IF(E49="","",ROUNDUP(MROUND(E48/E49*100,0.1),0)) ->  | F50: =IF(F49="","",ROUNDUP(MROUND(F48/F49*100,0.1),0)) ->  | H50: =IF(O49=1,"05/27/08","") ->  | I50: Specimen No.
B51: Average Sand Equivalent | E51: =IF(D50="","",ROUNDUP(MROUND(SUM(D50:F50)/COUNT(D50:F50),0.1),0)) ->  | I51: Station
C52: =IF(E51=0,"",IF(E51<O50," Fails Minimum S.E. Requirements","")) ->  | I52: Expressway
B53: DENSITY TEST FOR ROADWAY CORES (OHD L-45) | I53: Lane
B54: A (Wt. Dry Spec. in Air) | D54: =IF(N(K61)>2,K58,"") ->  | E54: =IF(N(L61)>2,L58,"") ->  | F54: =IF(N(M61)>2,M58,"") ->  | I54: Thickness (in.)
B55: Bag Weight | I55: Initial Wt. Spec. in Air | U55: =IF(ABS('Sublot 1'!L65-L65)>'Pay Factors'!B22,'Pay Factors'!$CS$55,0) -> 
B56: B (Sealed Wt. in Air) | D56: =IF(D54="","",D54+D55) ->  | E56: =IF(E54="","",E54+E55) ->  | F56: =IF(F54="","",F54+F55) ->  | I56: C (Wt. Spec. in Water) | O56: ='Sublot 1'!O56 -> 45 | P56: Minimum S.E. Requirement
B57: E (Sealed Spec. Wt. in H2O) | I57: B (Wt. Spec. S.S.D.)
B58: C (Final Wt. Dry Spec. in Air) | I58: A (Wt. Dry Spec. in Air)
B59: F (Bag's Gsa) | D59: =IF(OR(D58="",D54=""),"",IF((D55)>=35,0.8596-((0.00166*D54)/(D55)),IF((D55)<35,0.8121-((0.000566*D54)/(D55)),"ERR"))) ->  | E59: =IF(OR(E58="",E54=""),"",IF((E55)>=35,0.8596-((0.00166*E54)/(E55)),IF((E55)<35,0.8121-((0.000566*E54)/(E55)),"ERR"))) ->  | F59: =IF(OR(F58="",F54=""),"",IF((F55)>=35,0.8596-((0.00166*F54)/(F55)),IF((F55)<35,0.8121-((0.000566*F54)/(F55)),"ERR"))) ->  | I59: B - C | K59: =IF(K58="","",+K57-K56) ->  | L59: =IF(L58="","",+L57-L56) ->  | M59: =IF(M58="","",+M57-M56) -> 
B60: Core Spec. Grav. ( Gmb ) | D60: =IF(OR(D54="",D55=""),"",ROUND(D54/(D58+D55-D57-(D55)/D59),Tables!$E$37)) ->  | E60: =IF(OR(E54="",E55=""),"",ROUND(E54/(E58+E55-E57-(E55)/E59),Tables!$E$37)) ->  | F60: =IF(OR(F54="",F55=""),"",ROUND(F54/(F58+F55-F57-(F55)/F59),Tables!$E$37)) ->  | I60: Core Spec. Grav. ( Gmb ) | K60: =IF(K59="","",ROUND((K58/K59),Tables!$E$77)) ->  | L60: =IF(L59="","",ROUND((L58/L59),Tables!$E$77)) ->  | M60: =IF(M59="","",ROUND((M58/M59),Tables!$E$77)) ->  | O60: =COUNT(K60:M60) -> 0 | P60: No. of Cores
D61: =IF(D58="","",IF(AND(D54-D58<D54*0.0008,D58-D54<=D54*0.0004),"","REDO")) ->  | E61: =IF(E58="","",IF(AND(E54-E58<E54*0.0008,E58-E54<=E54*0.0004),"","REDO")) ->  | F61: =IF(F58="","",IF(AND(F54-F58<F54*0.0008,F58-F54<=F54*0.0004),"","REDO")) ->  | I61: % Absorption | K61: =IF(K56="","",ROUND((K57-K58)/(K57-K56)*100,Tables!$E$78)) ->  | L61: =IF(L58="","",ROUND((L57-L58)/(L57-L56)*100,Tables!$E$78)) ->  | M61: =IF(M58="","",ROUND((M57-M58)/(M57-M56)*100,Tables!$E$78)) -> 
D62: =IF(D60<>"",D60,K60) ->  | E62: =IF(E60<>"",E60,L60) ->  | F62: =IF(F60<>"",F60,M60) ->  | I62: Avg. Core Sp. Gr. ( Gmb ) | L62: =IF(K60="","",ROUND(AVERAGE(D62:F62),Tables!$E$79)) -> 
I63: % Roadway Density | K63: =IF(K64="","",IF(K64="L-14",ROUND(K60/$L$49*100,Tables!$E$80),ROUND(D62/$L$49*100,Tables!$E$80))) ->  | L63: =IF(L64="","",IF(L64="L-14",ROUND(L60/$L$49*100,Tables!$E$80),ROUND(E62/$L$49*100,Tables!$E$80))) ->  | M63: =IF(M64="","",IF(M64="L-14",ROUND(M60/$L$49*100,Tables!$E$80),ROUND(F62/$L$49*100,Tables!$E$80))) -> 
I64: Density Test Method | K64: =IF(K58="","",IF(AND(K61>2,D60>0),"L-45 ","L-14 ")) ->  | L64: =IF(L58="","",IF(AND(L61>2,E60>0),"L-45 ","L-14 ")) ->  | M64: =IF(M58="","",IF(AND(M61>2,F60>0),"L-45 ","L-14 ")) -> 
B65: Signature / Cert. ID | E65: / | I65: % Avg. Roadway Density | L65: =IF(L49="","",IF(L49>0,ROUND(L62/L49*100,Tables!$E$81),"")) -> 
I66: =IF(OR(N(K61)>2,N(L61)>2,N(M61)>2),"A core absorption is > 2.0%. OHD L-45 is required for it.","") -> 
J67: =IF(L65="","",IF(OR(L65>97,L65<88.1)," Fails Roadway Density Requirements","")) -> 

Sheet Sublot 3
A1: ='Sublot 1'!A1 -> v 1.17 | B1: OKLAHOMA DEPARTMENT OF TRANSPORTATION
A2: SUPERPAVE
A3: ='Sublot 1'!A3:N3 -> McALESTER RESIDENCY
A4: HOT MIX ASPHALT SAMPLE SHEET
P5: INFORMATION FROM MIX DESIGN:
A6: Project No. | B6: =IF('Sublot 1'!B6="","",'Sublot 1'!B6) ->  | F6: J.P. No. | G6: =IF('Sublot 1'!G6="","",'Sublot 1'!G6) ->  | J6: Contract No. | L6: =IF('Sublot 1'!L6="","",'Sublot 1'!L6) -> 
A7: Contractor | B7: =IF('Sublot 1'!B7="","",'Sublot 1'!B7) ->  | F7: Producer | G7: =IF('Sublot 1'!G7="","",'Sublot 1'!G7) ->  | J7: Plant Location | L7: =IF('Sublot 1'!L7="","",'Sublot 1'!L7) -> 
A8: ='Sublot 1'!A8 -> SM Sample ID | F8: Mix Type | G8: =IF('Sublot 1'!G8="","",'Sublot 1'!G8) ->  | J8: Design No. | L8: =IF('Sublot 1'!L8="","",'Sublot 1'!L8) ->  | O8: ='Sublot 1'!O8 -> PG64 | P8: Million ESALs or PG Grade: Select from drop-down list.
B10: EXTRACTIONS AND GRADATIONS | H10: IOC | J10: TOTAL TONS for this SubLOT
B11: (OHD L-26, AASHTO T-30, T-11) | H11: =IF('Sublot 1'!H11="","",'Sublot 1'!H11) ->  | I11: ='Sublot 1'!I11 ->  | J11: Gse from Design | L11: (Gse >= Gsb)
B12: Time | D12: Date | H12: Specimen Wt. | I12: ='Sublot 1'!I12 ->  | J12: Gsb from Design | O12: A | P12: Rices Precision: Select from drop-down list.
B13: Temperature | D13: Lot | E13: =IF('Sublot 1'!E13="","",'Sublot 1'!E13) -> 1 | F13: SubLot | G13: 3 | H13: =IF('Sublot 1'!H13="","",'Sublot 1'!H13) ->  | I13: ='Sublot 1'!I13 ->  | J13: Spec. Grav. AC from Design | O13: =VLOOKUP(O12,PTable,2,FALSE) -> 0.014 | P13: Method A - Mechanical or Method B - Manual
B14: SIEVE | C14: JMF | D14: Acc. Wt. | E14: Acc. % | F14: Total Agg. | I14: MAXIMUM SPECIFIC GRAVITY (AASHTO T209)
B15: SIZE | D15: Retd. | E15: Retd. | F15: % Passing | G15: Dev. | I15: Sub-Lot No. | P15: Limits | S15: Tolerance
B16: 1 1/2" (37.5 mm) | C16: ='Sublot 2'!C16 ->  | E16: =IF(D16="","",ROUND(D16/$E$34*100,Tables!$E$51)) ->  | F16: =IF(D16="","",100-E16) ->  | G16: =IF(D16="","",ABS(C16-F16)) ->  | I16: Sample No. | K16: 1 | L16: | | M16: 2 | O16: 1 1/2" (37.5 mm) | P16: =IF(C16="","",C16-S16) ->  | Q16: =IF(C16="","",IF(C16+S16>100,100,C16+S16)) ->  | S16: 0
B17: 1" (25.0 mm) | C17: ='Sublot 2'!C17 ->  | E17: =IF(D17="","",ROUND(D17/$E$34*100,Tables!$E$51)) ->  | G17: =IF(D17="","",ABS(C17-F17)) ->  | I17: Flask No. | L17: | | O17: 1" (25.0 mm) | S17: 0
B18: 3/4" (19.0 mm | C18: ='Sublot 2'!C18 ->  | E18: =IF(D18="","",ROUND(D18/$E$34*100,Tables!$E$51)) ->  | G18: =IF(D18="","",ABS(C18-F18)) ->  | I18: Sample Wt. | J18: (A) | L18: | | O18: 3/4" (19.0 mm | S18: 0
B19: 1/2" (12.5 mm) | C19: ='Sublot 2'!C19 ->  | E19: =IF(D19="","",ROUND(D19/$E$34*100,Tables!$E$51)) ->  | G19: =IF(D19="","",ABS(C19-F19)) ->  | I19: Calib. Wt. | J19: (B) | L19: | | O19: 1/2" (12.5 mm) | S19: 7
B20: 3/8" (9.5 mm) | C20: ='Sublot 2'!C20 ->  | E20: =IF(D20="","",ROUND(D20/$E$34*100,Tables!$E$51)) ->  | I20: A + B | J20: (C) | K20: =IF(K18="","",+K18+K19) ->  | L20: | | M20: =IF(M18="","",+M18+M19) ->  | O20: 3/8" (9.5 mm) | S20: 7
B21: # 4 ( 4.75 mm) | C21: ='Sublot 2'!C21 ->  | E21: =IF(D21="","",ROUND(D21/$E$34*100,Tables!$E$51)) ->  | I21: Sample + Flask + H²O (D) | L21: | | O21: # 4 ( 4.75 mm) | S21: 7
B22: # 8 (2.36 mm) | C22: ='Sublot 2'!C22 ->  | E22: =IF(D22="","",ROUND(D22/$E$34*100,Tables!$E$51)) ->  | I22: C - D | J22: (E) | K22: =IF(K20="","",+K20-K21) ->  | L22: | | M22: =IF(M20="","",+M20-M21) ->  | O22: # 8 (2.36 mm) | S22: 5
B23: # 16 ( 1.18 mm) | C23: ='Sublot 2'!C23 ->  | E23: =IF(D23="","",ROUND(D23/$E$34*100,Tables!$E$51)) ->  | I23: Rice's Gravity | J23: (A/E) | K23: =IF(K18>0,ROUND(K18/K22,Tables!$E$64),"") ->  | L23: | | M23: =IF(M18>0,ROUND(M18/M22,Tables!$E$64),"") ->  | O23: # 16 ( 1.18 mm) | S23: 4
B24: # 30 (.600 mm) | C24: ='Sublot 2'!C24 ->  | E24: =IF(D24="","",ROUND(D24/$E$34*100,Tables!$E$51)) ->  | I24: Avg. Rice Gravity (Gmm) | L24: =IF(K23="","",ROUND(AVERAGE(K23,M23),Tables!$E$65)) ->  | M24: =IF(K23="","",IF(ABS(K23-M23)>O13,"ERR","")) ->  | O24: # 30 (.600 mm) | S24: 4
B25: # 50 (.300 mm) | C25: ='Sublot 2'!C25 ->  | E25: =IF(D25="","",ROUND(D25/$E$34*100,Tables!$E$51)) ->  | I25: Eff. Spec. Grav. (Gse) | L25: =IF(K18>0,ROUND((100-F30)/((100/L24)-(F30/$I$13)),Tables!$E$66),"") ->  | O25: # 50 (.300 mm) | S25: 4
B26: # 100 (.150 mm) | C26: ='Sublot 2'!C26 ->  | E26: =IF(D26="","",ROUND(D26/$E$34*100,Tables!$E$51)) ->  | J26: =IF(K23="","",IF(ABS(K23-M23)>O13,"ERR = Precision Out of Tolerance","")) ->  | O26: # 100 (.150 mm) | S26: 3
B27: # 200 (.075 mm) | C27: ='Sublot 2'!C27 ->  | I27: LAB MOLDED DENSITY (OHD L-8, L-14) @ Ndes
B28: Total -200 (W3) | F28: =IF(E34="","",ROUND((E38/E34)*100,Tables!$E$52)) ->  | G28: =IF(D27="","",ABS(C27-F28)) ->  | I28: New Gsb ( calculated ) | L28: =IF(L25="","",ROUND(IF(I11="","",(I12/I11)*L25),Tables!$E$68)) ->  | O28: Total -200 (W3) | P28: =IF(C27="","",C27-S28) ->  | Q28: =IF(C27="","",C27+S28) ->  | S28: 2
B29: % AC (P5m) | C29: ='Sublot 2'!C29 ->  | I29: Spec. Grav. AC | L29: =IF(K33="","",$I13) -> 
B30: Corrected %AC | F30: =IF(D29="","",ROUND(((((D29*F43)/100)-(F43-F44))/F44)*100,Tables!$E$53)) ->  | G30: =IF(D29="","",IF(ABS(C29-F30)>S30,ROUND(ABS(C29-F30),Tables!$E$33),0)) ->  | I30: % AC | L30: =IF(K33="","",+F30) ->  | O30: Corrected %AC | P30: =IF(C29="","",C29-S30) ->  | Q30: =IF(C29="","",C29+S30) ->  | S30: 0.4
B31: Basket (A) | I31: Max. Theo. Spec. Grav. | L31: =IF(D29="","",IF($L$24="",ROUND((100/(($F$30/$I$13)+(100-$F$30)/#REF!)),Tables!$E$69),L24)) -> 
B32: Basket + Mix (B) | I32: Specimen No. | K32: 1 | L32: 2
B33: Mix (B-A) | E33: =IF(E31="","",+E32-E31) ->  | I33: A (Wt. Spec. in Air)
B34: Extr. Aggr. Wt (C) | D34: =IF(D31="","",+D31+D32) ->  | I34: C (Wt. Spec. in Water
B35: Washed Wt (D) | I35: B (Wt. Spec. S.S.D.)
B36: Pan Matl (E) | I36: B - C | K36: =IF(K33="","",+K35-K34) ->  | L36: =IF(L33="","",+L35-L34) ->  | M36: =IF(M33="","",+M35-M34) -> 
B37: Wt of Loss by Washing (W1) | E37: =IF(E35="","",E34-E35) ->  | I37: L.M. Spec. Grav. - Gmb | K37: =IF(K33=0,"",ROUND((K33/K36),Tables!$E$70)) ->  | L37: =IF(L33=0,"",ROUND((L33/L36),Tables!$E$70)) ->  | M37: =IF(M33=0,"",ROUND((M33/M36),Tables!$E$70)) -> 
B38: Total Agg. Passing 200 (W2) | E38: =IF(E36="","",+E37+E36) ->  | I38: Avg. L.M. Spec. Grav. | L38: =IF(K37="","",ROUND(AVERAGE(K37,L37,M37),Tables!$E$71)) -> 
B39: Precision (+/- 0.2 %) | E39: =IF(E35="","",ROUND(((E35-(D27+E36))/E35)*100,Tables!$E$54)) ->  | I39: % L.M. Density @ Ndes | L39: =IF(L38="","",ROUND(L38/L31*100,Tables!$E$72)) ->  | M39: =IF(L39="","",IF(OR(ROUND(L39,1)<O39,ROUND(L39,1)>Q39),"ERR","")) ->  | O39: ='Sublot 1'!O39 -> 94.5 | P39: - | Q39: ='Sublot 1'!Q39 -> 97.4 | R39: Enter %Density of GMM reqd. as listed on JMF
I40: % Air Voids | L40: =IF(L39="","",ROUND(100-(L38/L31*100),Tables!$E$73)) ->  | M40: =IF(L40="","",ABS(O40-L40)) ->  | O40: ='Sublot 1'!O40 -> 4 | Q40: %Air Voids Target | T40: (Superpave, SMA) = 4%, (RBL) = 2%
B41: MOISTURE & VOLATILE SAMPLE | I41: % V.M.A. | L41: =IF(L38="","",IF(L38>0,ROUND(100-L38*(100-L30)/L28,Tables!$E$74),Tables!E74)) ->  | M41: =IF(L41="","",IF(L41<O41,"ERR","")) ->  | O41: ='Sublot 1'!O41 -> 14 | Q41: Enter required field VMA from mix design.
B42: Pan | I42: =IF(M39="ERR","% L.M. Density out of range","") ->  | L42: =IF(M41="ERR"," %VMA out of range","") -> 
B43: Original Mix (W1m) | F43: =IF(E43="","",E43-E42) ->  | I43: Lab Molded Specimen @ Ndes | J43: # of Gyrations | K43: Specimen Height | L43: LSMG Ratio x LSMG @ Ndes) | M43: % Density (LSMG x 100 / Rice's)
B44: Dry Mix (W5m) | F44: =IF(E44="","",E44-E42) -> 
I45: Nini | J45: =VLOOKUP(O8,GTable,2,FALSE) -> 6 | L45: =IF(K45="","",ROUND((K46/K45),Tables!$E$59)*ROUND(L46,Tables!$E$60)) ->  | M45: =IF(AND(L46<>"",OR(K45="",K46="")),"ERR",IF(K46="","",ROUND(((L45*100)/$L$24),Tables!$E$61))) ->  | O45: =VLOOKUP(O8,GTable,5) -> 85.5 | P45: Nini Minimun Requirement
B46: SAND EQUIVALENT (AASHTO T-176) | I46: Ndes | J46: =VLOOKUP(O8,GTable,3,FALSE) -> 50 | L46: =IF(K46="","",L38) ->  | M46: =IF(K46="","",ROUND(((L46*100)/$L$24),Tables!$E$62)) ->  | O46: =VLOOKUP(O8,GTable,7) -> 91.5 | P46: Nini Maximum Requirement
B47: S.E. No. | D47: 1 | E47: 2 | F47: =+IF(F48="","",3) ->  | I47: =(IF(M46="","",IF(OR($M$45="ERR",OR($M45>$O46,$M$45<$O$45))," Fails Nini Requirements",""))) -> 
B48: Sand Reading | I48: ROADWAY DENSITY (OHD L-14 / OHD L-45)
B49: Clay Reading | H49: =IF(O49=1,"OHD L-14","") ->  | I49: =IF(O49=""," Avg. Rice Gravity"," Max. Theo. at JMF AC") -> Avg. Rice Gravity | L49: =IF(K58="","",IF(O49=1,ROUND((100/(($C29/$I$13)+(100-$C29)/L25)),Tables!$E$56),$L$24)) ->  | M49: Gmm | Q49: = 1 if density by PGmm by Pb at JMF in 411 pay table, else leave blank.
B50: Sand Equivalent | D50: =IF(D49="","",ROUNDUP(MROUND(D48/D49*100,0.1),0)) ->  | E50: =IF(E49="","",ROUNDUP(MROUND(E48/E49*100,0.1),0)) ->  | F50: =IF(F49="","",ROUNDUP(MROUND(F48/F49*100,0.1),0)) ->  | H50: =IF(O49=1,"05/27/08","") ->  | I50: Specimen No.
B51: Average Sand Equivalent | E51: =IF(D50="","",ROUNDUP(MROUND(SUM(D50:F50)/COUNT(D50:F50),0.1),0)) ->  | I51: Station
C52: =IF(E51=0,"",IF(E51<O50," Fails Minimum S.E. Requirements","")) ->  | I52: Expressway
B53: DENSITY TEST FOR ROADWAY CORES (OHD L-45) | I53: Lane
B54: A (Wt. Dry Spec. in Air) | D54: =IF(N(K61)>2,K58,"") ->  | E54: =IF(N(L61)>2,L58,"") ->  | F54: =IF(N(M61)>2,M58,"") ->  | I54: Thickness (in.)
B55: Bag Weight | I55: Initial Wt. Spec. in Air | U55: =IF(OR(OR(ABS('Sublot 1'!L65-'Sublot 2'!L65)>'Pay Factors'!$B$22,ABS('Sublot 1'!L65-L65)>'Pay Factors'!$B$22),ABS('Sublot 2'!L65-L65)>'Pay Factors'!$B$22),'Pay Factors'!$CS$55,0) -> 
B56: B (Sealed Wt. in Air) | D56: =IF(D54="","",D54+D55) ->  | E56: =IF(E54="","",E54+E55) ->  | F56: =IF(F54="","",F54+F55) ->  | I56: C (Wt. Spec. in Water) | O56: ='Sublot 1'!O56 -> 45 | P56: Minimum S.E. Requirement
B57: E (Sealed Spec. Wt. in H2O) | I57: B (Wt. Spec. S.S.D.)
B58: C (Final Wt. Dry Spec. in Air) | I58: A (Wt. Dry Spec. in Air)
B59: F (Bag's Gsa) | D59: =IF(OR(D58="",D54=""),"",IF((D55)>=35,0.8596-((0.00166*D54)/(D55)),IF((D55)<35,0.8121-((0.000566*D54)/(D55)),"ERR"))) ->  | E59: =IF(OR(E58="",E54=""),"",IF((E55)>=35,0.8596-((0.00166*E54)/(E55)),IF((E55)<35,0.8121-((0.000566*E54)/(E55)),"ERR"))) ->  | F59: =IF(OR(F58="",F54=""),"",IF((F55)>=35,0.8596-((0.00166*F54)/(F55)),IF((F55)<35,0.8121-((0.000566*F54)/(F55)),"ERR"))) ->  | I59: B - C | K59: =IF(K58="","",+K57-K56) ->  | L59: =IF(L58="","",+L57-L56) ->  | M59: =IF(M58="","",+M57-M56) -> 
B60: Core Spec. Grav. ( Gmb ) | D60: =IF(OR(D54="",D55=""),"",ROUND(D54/(D58+D55-D57-(D55)/D59),Tables!$E$37)) ->  | E60: =IF(OR(E54="",E55=""),"",ROUND(E54/(E58+E55-E57-(E55)/E59),Tables!$E$37)) ->  | F60: =IF(OR(F54="",F55=""),"",ROUND(F54/(F58+F55-F57-(F55)/F59),Tables!$E$37)) ->  | I60: Core Spec. Grav. ( Gmb ) | K60: =IF(K59="","",ROUND((K58/K59),Tables!$E$77)) ->  | L60: =IF(L59="","",ROUND((L58/L59),Tables!$E$77)) ->  | M60: =IF(M59="","",ROUND((M58/M59),Tables!$E$77)) ->  | O60: =COUNT(K60:M60) -> 0 | P60: No. of Cores
D61: =IF(D58="","",IF(AND(D54-D58<D54*0.0008,D58-D54<=D54*0.0004),"","REDO")) ->  | E61: =IF(E58="","",IF(AND(E54-E58<E54*0.0008,E58-E54<=E54*0.0004),"","REDO")) ->  | F61: =IF(F58="","",IF(AND(F54-F58<F54*0.0008,F58-F54<=F54*0.0004),"","REDO")) ->  | I61: % Absorption | K61: =IF(K56="","",ROUND((K57-K58)/(K57-K56)*100,Tables!$E$78)) ->  | L61: =IF(L58="","",ROUND((L57-L58)/(L57-L56)*100,Tables!$E$78)) ->  | M61: =IF(M58="","",ROUND((M57-M58)/(M57-M56)*100,Tables!$E$78)) -> 
D62: =IF(D60<>"",D60,K60) ->  | E62: =IF(E60<>"",E60,L60) ->  | F62: =IF(F60<>"",F60,M60) ->  | I62: Avg. Core Sp. Gr. ( Gmb ) | L62: =IF(K60="","",ROUND(AVERAGE(D62:F62),Tables!$E$79)) -> 
I63: % Roadway Density | K63: =IF(K64="","",IF(K64="L-14",ROUND(K60/$L$49*100,Tables!$E$80),ROUND(D62/$L$49*100,Tables!$E$80))) ->  | L63: =IF(L64="","",IF(L64="L-14",ROUND(L60/$L$49*100,Tables!$E$80),ROUND(E62/$L$49*100,Tables!$E$80))) ->  | M63: =IF(M64="","",IF(M64="L-14",ROUND(M60/$L$49*100,Tables!$E$80),ROUND(F62/$L$49*100,Tables!$E$80))) -> 
I64: Density Test Method | K64: =IF(K58="","",IF(AND(K61>2,D60>0),"L-45 ","L-14 ")) ->  | L64: =IF(L58="","",IF(AND(L61>2,E60>0),"L-45 ","L-14 ")) ->  | M64: =IF(M58="","",IF(AND(M61>2,F60>0),"L-45 ","L-14 ")) -> 
B65: Signature / Cert. ID | E65: / | I65: % Avg. Roadway Density | L65: =IF(L49="","",IF(L49>0,ROUND(L62/L49*100,Tables!$E$81),"")) -> 
I66: =IF(OR(N(K61)>2,N(L61)>2,N(M61)>2),"A core absorption is > 2.0%. OHD L-45 is required for it.","") -> 
J67: =IF(L65="","",IF(OR(L65>97,L65<88.1)," Fails Roadway Density Requirements","")) -> 

Sheet Sublot 4
A1: ='Sublot 1'!A1 -> v 1.17 | B1: OKLAHOMA DEPARTMENT OF TRANSPORTATION
A2: SUPERPAVE
A3: McALESTER RESIDENCY
A4: HOT MIX ASPHALT SAMPLE SHEET
P5: INFORMATION FROM MIX DESIGN:
A6: Project No. | B6: =IF('Sublot 1'!B6="","",'Sublot 1'!B6) ->  | F6: J.P. No. | G6: =IF('Sublot 1'!G6="","",'Sublot 1'!G6) ->  | J6: Contract No. | L6: =IF('Sublot 1'!L6="","",'Sublot 1'!L6) -> 
A7: Contractor | B7: =IF('Sublot 1'!B7="","",'Sublot 1'!B7) ->  | F7: Producer | G7: =IF('Sublot 1'!G7="","",'Sublot 1'!G7) ->  | J7: Plant Location | L7: =IF('Sublot 1'!L7="","",'Sublot 1'!L7) -> 
A8: ='Sublot 1'!A8 -> SM Sample ID | F8: Mix Type | G8: =IF('Sublot 1'!G8="","",'Sublot 1'!G8) ->  | J8: Design No. | L8: =IF('Sublot 1'!L8="","",'Sublot 1'!L8) ->  | O8: ='Sublot 1'!O8 -> PG64 | P8: Million ESALs or PG Grade: Select from drop-down list.
B10: EXTRACTIONS AND GRADATIONS | H10: IOC | J10: TOTAL TONS for this SubLOT
B11: (OHD L-26, AASHTO T-30, T-11) | H11: =IF('Sublot 1'!H11="","",'Sublot 1'!H11) ->  | I11: ='Sublot 1'!I11 ->  | J11: Gse from Design | L11: (Gse >= Gsb)
B12: Time | D12: Date | H12: Specimen Wt. | I12: ='Sublot 1'!I12 ->  | J12: Gsb from Design | O12: A | P12: Rices Precision: Select from drop-down list.
B13: Temperature | D13: Lot | E13: =IF('Sublot 1'!E13="","",'Sublot 1'!E13) -> 1 | F13: SubLot | G13: 4 | H13: =IF('Sublot 1'!H13="","",'Sublot 1'!H13) ->  | I13: ='Sublot 1'!I13 ->  | J13: Spec. Grav. AC from Design | O13: =VLOOKUP(O12,PTable,2,FALSE) -> 0.014 | P13: Method A - Mechanical or Method B - Manual
B14: SIEVE | C14: JMF | D14: Acc. Wt. | E14: Acc. % | F14: Total Agg. | I14: MAXIMUM SPECIFIC GRAVITY (AASHTO T209)
B15: SIZE | D15: Retd. | E15: Retd. | F15: % Passing | G15: Dev. | I15: Sub-Lot No. | P15: Limits | S15: Tolerance
B16: 1 1/2" (37.5 mm) | C16: ='Sublot 3'!C16 ->  | E16: =IF(D16="","",ROUND(D16/$E$34*100,Tables!$E$51)) ->  | F16: =IF(D16="","",100-E16) ->  | G16: =IF(D16="","",ABS(C16-F16)) ->  | I16: Sample No. | K16: 1 | L16: | | M16: 2 | O16: 1 1/2" (37.5 mm) | P16: =IF(C16="","",C16-S16) ->  | Q16: =IF(C16="","",IF(C16+S16>100,100,C16+S16)) ->  | S16: 0
B17: 1" (25.0 mm) | C17: ='Sublot 3'!C17 ->  | E17: =IF(D17="","",ROUND(D17/$E$34*100,Tables!$E$51)) ->  | G17: =IF(D17="","",ABS(C17-F17)) ->  | I17: Flask No. | L17: | | O17: 1" (25.0 mm) | S17: 0
B18: 3/4" (19.0 mm | C18: ='Sublot 3'!C18 ->  | E18: =IF(D18="","",ROUND(D18/$E$34*100,Tables!$E$51)) ->  | G18: =IF(D18="","",ABS(C18-F18)) ->  | I18: Sample Wt. | J18: (A) | L18: | | O18: 3/4" (19.0 mm | S18: 0
B19: 1/2" (12.5 mm) | C19: ='Sublot 3'!C19 ->  | E19: =IF(D19="","",ROUND(D19/$E$34*100,Tables!$E$51)) ->  | G19: =IF(D19="","",ABS(C19-F19)) ->  | I19: Calib. Wt. | J19: (B) | L19: | | O19: 1/2" (12.5 mm) | S19: 7
B20: 3/8" (9.5 mm) | C20: ='Sublot 3'!C20 ->  | E20: =IF(D20="","",ROUND(D20/$E$34*100,Tables!$E$51)) ->  | I20: A + B | J20: (C) | K20: =IF(K18="","",+K18+K19) ->  | L20: | | M20: =IF(M18="","",+M18+M19) ->  | O20: 3/8" (9.5 mm) | S20: 7
B21: # 4 ( 4.75 mm) | C21: ='Sublot 3'!C21 ->  | E21: =IF(D21="","",ROUND(D21/$E$34*100,Tables!$E$51)) ->  | I21: Sample + Flask + H²O (D) | L21: | | O21: # 4 ( 4.75 mm) | S21: 7
B22: # 8 (2.36 mm) | C22: ='Sublot 3'!C22 ->  | E22: =IF(D22="","",ROUND(D22/$E$34*100,Tables!$E$51)) ->  | I22: C - D | J22: (E) | K22: =IF(K20="","",+K20-K21) ->  | L22: | | M22: =IF(M20="","",+M20-M21) ->  | O22: # 8 (2.36 mm) | S22: 5
B23: # 16 ( 1.18 mm) | C23: ='Sublot 3'!C23 ->  | E23: =IF(D23="","",ROUND(D23/$E$34*100,Tables!$E$51)) ->  | I23: Rice's Gravity | J23: (A/E) | K23: =IF(K18>0,ROUND(K18/K22,Tables!$E$64),"") ->  | L23: | | M23: =IF(M18>0,ROUND(M18/M22,Tables!$E$64),"") ->  | O23: # 16 ( 1.18 mm) | S23: 4
B24: # 30 (.600 mm) | C24: ='Sublot 3'!C24 ->  | E24: =IF(D24="","",ROUND(D24/$E$34*100,Tables!$E$51)) ->  | I24: Avg. Rice Gravity (Gmm) | L24: =IF(K23="","",ROUND(AVERAGE(K23,M23),Tables!$E$65)) ->  | M24: =IF(K23="","",IF(ABS(K23-M23)>O13,"ERR","")) ->  | O24: # 30 (.600 mm) | S24: 4
B25: # 50 (.300 mm) | C25: ='Sublot 3'!C25 ->  | E25: =IF(D25="","",ROUND(D25/$E$34*100,Tables!$E$51)) ->  | I25: Eff. Spec. Grav. (Gse) | L25: =IF(K18>0,ROUND((100-F30)/((100/L24)-(F30/$I$13)),Tables!$E$66),"") ->  | O25: # 50 (.300 mm) | S25: 4
B26: # 100 (.150 mm) | C26: ='Sublot 3'!C26 ->  | E26: =IF(D26="","",ROUND(D26/$E$34*100,Tables!$E$51)) ->  | J26: =IF(K23="","",IF(ABS(K23-M23)>O13,"ERR = Precision Out of Tolerance","")) ->  | O26: # 100 (.150 mm) | S26: 3
B27: # 200 (.075 mm) | C27: ='Sublot 3'!C27 ->  | I27: LAB MOLDED DENSITY (OHD L-8, L-14) @ Ndes
B28: Total -200 (W3) | F28: =IF(E34="","",ROUND((E38/E34)*100,Tables!$E$52)) ->  | G28: =IF(D27="","",ABS(C27-F28)) ->  | I28: New Gsb ( calculated ) | L28: =IF(L25="","",ROUND(IF(I11="","",(I12/I11)*L25),Tables!$E$68)) ->  | O28: Total -200 (W3) | P28: =IF(C27="","",C27-S28) ->  | Q28: =IF(C27="","",C27+S28) ->  | S28: 2
B29: % AC (P5m) | C29: ='Sublot 3'!C29 ->  | I29: Spec. Grav. AC | L29: =IF(K33="","",$I13) -> 
B30: Corrected %AC | F30: =IF(D29="","",ROUND(((((D29*F43)/100)-(F43-F44))/F44)*100,Tables!$E$53)) ->  | G30: =IF(D29="","",IF(ABS(C29-F30)>S30,ROUND(ABS(C29-F30),Tables!$E$33),0)) ->  | I30: % AC | L30: =IF(K33="","",+F30) ->  | O30: Corrected %AC | P30: =IF(C29="","",C29-S30) ->  | Q30: =IF(C29="","",C29+S30) ->  | S30: 0.4
B31: Basket (A) | I31: Max. Theo. Spec. Grav. | L31: =IF(D29="","",IF($L$24="",ROUND((100/(($F$30/$I$13)+(100-$F$30)/#REF!)),Tables!$E$69),L24)) -> 
B32: Basket + Mix (B) | I32: Specimen No. | K32: 1 | L32: 2
B33: Mix (B-A) | E33: =IF(E31="","",+E32-E31) ->  | I33: A (Wt. Spec. in Air)
B34: Extr. Aggr. Wt (C) | D34: =IF(D31="","",+D31+D32) ->  | I34: C (Wt. Spec. in Water
B35: Washed Wt (D) | I35: B (Wt. Spec. S.S.D.)
B36: Pan Matl (E) | I36: B - C | K36: =IF(K33="","",+K35-K34) ->  | L36: =IF(L33="","",+L35-L34) ->  | M36: =IF(M33="","",+M35-M34) -> 
B37: Wt of Loss by Washing (W1) | E37: =IF(E35="","",E34-E35) ->  | I37: L.M. Spec. Grav. - Gmb | K37: =IF(K33=0,"",ROUND((K33/K36),Tables!$E$70)) ->  | L37: =IF(L33=0,"",ROUND((L33/L36),Tables!$E$70)) ->  | M37: =IF(M33=0,"",ROUND((M33/M36),Tables!$E$70)) -> 
B38: Total Agg. Passing 200 (W2) | E38: =IF(E36="","",+E37+E36) ->  | I38: Avg. L.M. Spec. Grav. | L38: =IF(K37="","",ROUND(AVERAGE(K37,L37,M37),Tables!$E$71)) -> 
B39: Precision (+/- 0.2 %) | E39: =IF(E35="","",ROUND(((E35-(D27+E36))/E35)*100,Tables!$E$54)) ->  | I39: % L.M. Density @ Ndes | L39: =IF(L38="","",ROUND(L38/L31*100,Tables!$E$72)) ->  | M39: =IF(L39="","",IF(OR(ROUND(L39,1)<O39,ROUND(L39,1)>Q39),"ERR","")) ->  | O39: ='Sublot 1'!O39 -> 94.5 | P39: - | Q39: ='Sublot 1'!Q39 -> 97.4 | R39: Enter %Density of GMM reqd. as listed on JMF
I40: % Air Voids | L40: =IF(L39="","",ROUND(100-(L38/L31*100),Tables!$E$73)) ->  | M40: =IF(L40="","",ABS(O40-L40)) ->  | O40: ='Sublot 1'!O40 -> 4 | Q40: %Air Voids Target | T40: (Superpave, SMA) = 4%, (RBL) = 2%
B41: MOISTURE & VOLATILE SAMPLE | I41: % V.M.A. | L41: =IF(L38="","",IF(L38>0,ROUND(100-L38*(100-L30)/L28,Tables!$E$74),Tables!E74)) ->  | M41: =IF(L41="","",IF(L41<O41,"ERR","")) ->  | O41: ='Sublot 1'!O41 -> 14 | Q41: Enter required field VMA from mix design.
B42: Pan | I42: =IF(M39="ERR","% L.M. Density out of range","") ->  | L42: =IF(M41="ERR"," %VMA out of range","") -> 
B43: Original Mix (W1m) | F43: =IF(E43="","",E43-E42) ->  | I43: Lab Molded Specimen @ Ndes | J43: # of Gyrations | K43: Specimen Height | L43: LSMG Ratio x LSMG @ Ndes) | M43: % Density (LSMG x 100 / Rice's)
B44: Dry Mix (W5m) | F44: =IF(E44="","",E44-E42) -> 
I45: Nini | J45: =VLOOKUP(O8,GTable,2,FALSE) -> 6 | L45: =IF(K45="","",ROUND((K46/K45),Tables!$E$59)*ROUND(L46,Tables!$E$60)) ->  | M45: =IF(AND(L46<>"",OR(K45="",K46="")),"ERR",IF(K46="","",ROUND(((L45*100)/$L$24),Tables!$E$61))) ->  | O45: =VLOOKUP(O8,GTable,5) -> 85.5 | P45: Nini Minimun Requirement
B46: SAND EQUIVALENT (AASHTO T-176) | I46: Ndes | J46: =VLOOKUP(O8,GTable,3,FALSE) -> 50 | L46: =IF(K46="","",L38) ->  | M46: =IF(K46="","",ROUND(((L46*100)/$L$24),Tables!$E$62)) ->  | O46: =VLOOKUP(O8,GTable,7) -> 91.5 | P46: Nini Maximum Requirement
B47: S.E. No. | D47: 1 | E47: 2 | F47: 3 | I47: =(IF(M46="","",IF(OR($M$45="ERR",OR($M45>$O46,$M$45<$O$45))," Fails Nini Requirements",""))) -> 
B48: Sand Reading | I48: ROADWAY DENSITY (OHD L-14 / OHD L-45)
B49: Clay Reading | H49: =IF(O49=1,"OHD L-14","") ->  | I49: =IF(O49=""," Avg. Rice Gravity"," Max. Theo. at JMF AC") -> Avg. Rice Gravity | L49: =IF(K58="","",IF(O49=1,ROUND((100/(($C29/$I$13)+(100-$C29)/L25)),Tables!$E$56),$L$24)) ->  | M49: Gmm | Q49: = 1 if density by PGmm by Pb at JMF in 411 pay table, else leave blank.
B50: Sand Equivalent | D50: =IF(D49="","",ROUNDUP(D48/D49*100,1)) ->  | E50: =IF(E49="","",ROUNDUP(E48/E49*100,Tables!$E$55)) ->  | F50: =IF(F49="","",ROUNDUP(F48/F49*100,Tables!$E$55)) ->  | H50: =IF(O49=1,"05/27/08","") ->  | I50: Specimen No.
B51: Average Sand Equivalent | E51: =IF(D50="","",AVERAGE(D50:F50)) ->  | I51: Station
C52: =IF(E51=0,"",IF(E51<O50," Fails Minimum S.E. Requirements","")) ->  | I52: Expressway
B53: DENSITY TEST FOR ROADWAY CORES (OHD L-45) | I53: Lane
B54: A (Wt. Dry Spec. in Air) | D54: =IF(N(K61)>2,K58,"") ->  | E54: =IF(N(L61)>2,L58,"") ->  | F54: =IF(N(M61)>2,M58,"") ->  | I54: Thickness (in.)
B55: Bag Weight | I55: Initial Wt. Spec. in Air | U55: =IF(OR(OR(OR(OR(OR(ABS('Sublot 1'!L65-'Sublot 2'!L65)>'Pay Factors'!$B$22,ABS('Sublot 1'!L65-'Sublot 3'!L65)>'Pay Factors'!$B$22),ABS('Sublot 1'!L65-L65)>'Pay Factors'!$B$22),ABS('Sublot 2'!L65-'Sublot 3'!L65)>'Pay Factors'!$B$22),ABS('Sublot 2'!L65-L65)>'Pay Factors'!$B$22),ABS('Sublot 3'!L65-L65)>'Pay Factors'!$B$22),'Pay Factors'!$CS$55,0) -> 
B56: B (Sealed Wt. in Air) | D56: =IF(D54="","",D54+D55) ->  | E56: =IF(E54="","",E54+E55) ->  | F56: =IF(F54="","",F54+F55) ->  | I56: C (Wt. Spec. in Water) | O56: ='Sublot 1'!O56 -> 45 | P56: Minimum S.E. Requirement
B57: E (Sealed Spec. Wt. in H2O) | I57: B (Wt. Spec. S.S.D.)
B58: C (Final Wt. Dry Spec. in Air) | I58: A (Wt. Dry Spec. in Air)
B59: F (Bag's Gsa) | D59: =IF(OR(D58="",D54=""),"",IF((D55)>=35,0.8596-((0.00166*D54)/(D55)),IF((D55)<35,0.8121-((0.000566*D54)/(D55)),"ERR"))) ->  | E59: =IF(OR(E58="",E54=""),"",IF((E55)>=35,0.8596-((0.00166*E54)/(E55)),IF((E55)<35,0.8121-((0.000566*E54)/(E55)),"ERR"))) ->  | F59: =IF(OR(F58="",F54=""),"",IF((F55)>=35,0.8596-((0.00166*F54)/(F55)),IF((F55)<35,0.8121-((0.000566*F54)/(F55)),"ERR"))) ->  | I59: B - C | K59: =IF(K58="","",+K57-K56) ->  | L59: =IF(L58="","",+L57-L56) ->  | M59: =IF(M58="","",+M57-M56) -> 
B60: Core Spec. Grav. ( Gmb ) | D60: =IF(OR(D54="",D55=""),"",ROUND(D54/(D58+D55-D57-(D55)/D59),Tables!$E$37)) ->  | E60: =IF(OR(E54="",E55=""),"",ROUND(E54/(E58+E55-E57-(E55)/E59),Tables!$E$37)) ->  | F60: =IF(OR(F54="",F55=""),"",ROUND(F54/(F58+F55-F57-(F55)/F59),Tables!$E$37)) ->  | I60: Core Spec. Grav. ( Gmb ) | K60: =IF(K59="","",ROUND((K58/K59),Tables!$E$77)) ->  | L60: =IF(L59="","",ROUND((L58/L59),Tables!$E$77)) ->  | M60: =IF(M59="","",ROUND((M58/M59),Tables!$E$77)) ->  | O60: =COUNT(K60:M60) -> 0 | P60: No. of Cores
D61: =IF(D58="","",IF(AND(D54-D58<D54*0.0008,D58-D54<=D54*0.0004),"","REDO")) ->  | E61: =IF(E58="","",IF(AND(E54-E58<E54*0.0008,E58-E54<=E54*0.0004),"","REDO")) ->  | F61: =IF(F58="","",IF(AND(F54-F58<F54*0.0008,F58-F54<=F54*0.0004),"","REDO")) ->  | I61: % Absorption | K61: =IF(K56="","",ROUND((K57-K58)/(K57-K56)*100,Tables!$E$78)) ->  | L61: =IF(L58="","",ROUND((L57-L58)/(L57-L56)*100,Tables!$E$78)) ->  | M61: =IF(M58="","",ROUND((M57-M58)/(M57-M56)*100,Tables!$E$78)) -> 
D62: =IF(D60<>"",D60,K60) ->  | E62: =IF(E60<>"",E60,L60) ->  | F62: =IF(F60<>"",F60,M60) ->  | I62: Avg. Core Sp. Gr. ( Gmb ) | L62: =IF(K60="","",ROUND(AVERAGE(D62:F62),Tables!$E$79)) -> 
I63: % Roadway Density | K63: =IF(K64="","",IF(K64="L-14",ROUND(K60/$L$49*100,Tables!$E$80),ROUND(D62/$L$49*100,Tables!$E$80))) ->  | L63: =IF(L64="","",IF(L64="L-14",ROUND(L60/$L$49*100,Tables!$E$80),ROUND(E62/$L$49*100,Tables!$E$80))) ->  | M63: =IF(M64="","",IF(M64="L-14",ROUND(M60/$L$49*100,Tables!$E$80),ROUND(F62/$L$49*100,Tables!$E$80))) -> 
I64: Density Test Method | K64: =IF(K58="","",IF(AND(K61>2,D60>0),"L-45 ","L-14 ")) ->  | L64: =IF(L58="","",IF(AND(L61>2,E60>0),"L-45 ","L-14 ")) ->  | M64: =IF(M58="","",IF(AND(M61>2,F60>0),"L-45 ","L-14 ")) -> 
B65: Signature / Cert. ID | E65: / | I65: % Avg. Roadway Density | L65: =IF(L49="","",IF(L49>0,ROUND(L62/L49*100,Tables!$E$81),"")) -> 
I66: =IF(OR(N(K61)>2,N(L61)>2,N(M61)>2),"A core absorption is > 2.0%. OHD L-45 is required for it.","") -> 
J67: =IF(L65="","",IF(OR(L65>97,L65<88.1)," Fails Roadway Density Requirements","")) -> 

Sheet Sublot 5
A1: ='Sublot 1'!A1 -> v 1.17 | B1: OKLAHOMA DEPARTMENT OF TRANSPORTATION
A2: SUPERPAVE
A3: McALESTER RESIDENCY
A4: HOT MIX ASPHALT SAMPLE SHEET
P5: INFORMATION FROM MIX DESIGN:
A6: Project No. | B6: =IF('Sublot 1'!B6="","",'Sublot 1'!B6) ->  | F6: J.P. No. | G6: =IF('Sublot 1'!G6="","",'Sublot 1'!G6) ->  | J6: Contract No. | L6: =IF('Sublot 1'!L6="","",'Sublot 1'!L6) -> 
A7: Contractor | B7: =IF('Sublot 1'!B7="","",'Sublot 1'!B7) ->  | F7: Producer | G7: =IF('Sublot 1'!G7="","",'Sublot 1'!G7) ->  | J7: Plant Location | L7: =IF('Sublot 1'!L7="","",'Sublot 1'!L7) -> 
A8: ='Sublot 1'!A8 -> SM Sample ID | F8: Mix Type | G8: =IF('Sublot 1'!G8="","",'Sublot 1'!G8) ->  | J8: Design No. | L8: =IF('Sublot 1'!L8="","",'Sublot 1'!L8) ->  | O8: ='Sublot 1'!O8 -> PG64 | P8: Million ESALs or PG Grade: Select from drop-down list.
B10: EXTRACTIONS AND GRADATIONS | H10: IOC | J10: TOTAL TONS for this SubLOT
B11: (OHD L-26, AASHTO T-30, T-11) | H11: =IF('Sublot 1'!H11="","",'Sublot 1'!H11) ->  | I11: ='Sublot 1'!I11 ->  | J11: Gse from Design | L11: (Gse >= Gsb)
B12: Time | D12: Date | H12: Specimen Wt. | I12: ='Sublot 1'!I12 ->  | J12: Gsb from Design | O12: A | P12: Rices Precision: Select from drop-down list.
B13: Temperature | D13: Lot | E13: =IF('Sublot 1'!E13="","",'Sublot 1'!E13) -> 1 | F13: SubLot | G13: 5 | H13: =IF('Sublot 1'!H13="","",'Sublot 1'!H13) ->  | I13: ='Sublot 1'!I13 ->  | J13: Spec. Grav. AC from Design | O13: =VLOOKUP(O12,PTable,2,FALSE) -> 0.014 | P13: Method A - Mechanical or Method B - Manual
B14: SIEVE | C14: JMF | D14: Acc. Wt. | E14: Acc. % | F14: Total Agg. | I14: MAXIMUM SPECIFIC GRAVITY (AASHTO T209)
B15: SIZE | D15: Retd. | E15: Retd. | F15: % Passing | G15: Dev. | I15: Sub-Lot No. | P15: Limits | S15: Tolerance
B16: 1 1/2" (37.5 mm) | C16: ='Sublot 4'!C16 ->  | E16: =IF(D16="","",ROUND(D16/$E$34*100,Tables!$E$51)) ->  | F16: =IF(D16="","",100-E16) ->  | G16: =IF(D16="","",ABS(C16-F16)) ->  | I16: Sample No. | K16: 1 | L16: | | M16: 2 | O16: 1 1/2" (37.5 mm) | P16: =IF(C16="","",C16-S16) ->  | Q16: =IF(C16="","",IF(C16+S16>100,100,C16+S16)) ->  | S16: 0
B17: 1" (25.0 mm) | C17: ='Sublot 4'!C17 ->  | E17: =IF(D17="","",ROUND(D17/$E$34*100,Tables!$E$51)) ->  | G17: =IF(D17="","",ABS(C17-F17)) ->  | I17: Flask No. | L17: | | O17: 1" (25.0 mm) | S17: 0
B18: 3/4" (19.0 mm | C18: ='Sublot 4'!C18 ->  | E18: =IF(D18="","",ROUND(D18/$E$34*100,Tables!$E$51)) ->  | G18: =IF(D18="","",ABS(C18-F18)) ->  | I18: Sample Wt. | J18: (A) | L18: | | O18: 3/4" (19.0 mm | S18: 0
B19: 1/2" (12.5 mm) | C19: ='Sublot 4'!C19 ->  | E19: =IF(D19="","",ROUND(D19/$E$34*100,Tables!$E$51)) ->  | G19: =IF(D19="","",ABS(C19-F19)) ->  | I19: Calib. Wt. | J19: (B) | L19: | | O19: 1/2" (12.5 mm) | S19: 7
B20: 3/8" (9.5 mm) | C20: ='Sublot 4'!C20 ->  | E20: =IF(D20="","",ROUND(D20/$E$34*100,Tables!$E$51)) ->  | I20: A + B | J20: (C) | K20: =IF(K18="","",+K18+K19) ->  | L20: | | M20: =IF(M18="","",+M18+M19) ->  | O20: 3/8" (9.5 mm) | S20: 7
B21: # 4 ( 4.75 mm) | C21: ='Sublot 4'!C21 ->  | E21: =IF(D21="","",ROUND(D21/$E$34*100,Tables!$E$51)) ->  | I21: Sample + Flask + H²O (D) | L21: | | O21: # 4 ( 4.75 mm) | S21: 7
B22: # 8 (2.36 mm) | C22: ='Sublot 4'!C22 ->  | E22: =IF(D22="","",ROUND(D22/$E$34*100,Tables!$E$51)) ->  | I22: C - D | J22: (E) | K22: =IF(K20="","",+K20-K21) ->  | L22: | | M22: =IF(M20="","",+M20-M21) ->  | O22: # 8 (2.36 mm) | S22: 5
B23: # 16 ( 1.18 mm) | C23: ='Sublot 4'!C23 ->  | E23: =IF(D23="","",ROUND(D23/$E$34*100,Tables!$E$51)) ->  | I23: Rice's Gravity | J23: (A/E) | K23: =IF(K18>0,ROUND(K18/K22,Tables!$E$64),"") ->  | L23: | | M23: =IF(M18>0,ROUND(M18/M22,Tables!$E$64),"") ->  | O23: # 16 ( 1.18 mm) | S23: 4
B24: # 30 (.600 mm) | C24: ='Sublot 4'!C24 ->  | E24: =IF(D24="","",ROUND(D24/$E$34*100,Tables!$E$51)) ->  | I24: Avg. Rice Gravity (Gmm) | L24: =IF(K23="","",ROUND(AVERAGE(K23,M23),Tables!$E$65)) ->  | M24: =IF(K23="","",IF(ABS(K23-M23)>O13,"ERR","")) ->  | O24: # 30 (.600 mm) | S24: 4
B25: # 50 (.300 mm) | C25: ='Sublot 4'!C25 ->  | E25: =IF(D25="","",ROUND(D25/$E$34*100,Tables!$E$51)) ->  | I25: Eff. Spec. Grav. (Gse) | L25: =IF(K18>0,ROUND((100-F30)/((100/L24)-(F30/$I$13)),Tables!$E$66),"") ->  | O25: # 50 (.300 mm) | S25: 4
B26: # 100 (.150 mm) | C26: ='Sublot 4'!C26 ->  | E26: =IF(D26="","",ROUND(D26/$E$34*100,Tables!$E$51)) ->  | J26: =IF(K23="","",IF(ABS(K23-M23)>O13,"ERR = Precision Out of Tolerance","")) ->  | O26: # 100 (.150 mm) | S26: 3
B27: # 200 (.075 mm) | C27: ='Sublot 4'!C27 ->  | I27: LAB MOLDED DENSITY (OHD L-8, L-14) @ Ndes
B28: Total -200 (W3) | F28: =IF(E34="","",ROUND((E38/E34)*100,Tables!$E$52)) ->  | G28: =IF(D27="","",ABS(C27-F28)) ->  | I28: New Gsb ( calculated ) | L28: =IF(L25="","",ROUND(IF(I11="","",(I12/I11)*L25),Tables!$E$68)) ->  | O28: Total -200 (W3) | P28: =IF(C27="","",C27-S28) ->  | Q28: =IF(C27="","",C27+S28) ->  | S28: 2
B29: % AC (P5m) | C29: ='Sublot 4'!C29 ->  | I29: Spec. Grav. AC | L29: =IF(K33="","",$I13) -> 
B30: Corrected %AC | F30: =IF(D29="","",ROUND(((((D29*F43)/100)-(F43-F44))/F44)*100,Tables!$E$53)) ->  | G30: =IF(D29="","",IF(ABS(C29-F30)>S30,ROUND(ABS(C29-F30),Tables!$E$33),0)) ->  | I30: % AC | L30: =IF(K33="","",+F30) ->  | O30: Corrected %AC | P30: =IF(C29="","",C29-S30) ->  | Q30: =IF(C29="","",C29+S30) ->  | S30: 0.4
B31: Basket (A) | I31: Max. Theo. Spec. Grav. | L31: =IF(D29="","",IF($L$24="",ROUND((100/(($F$30/$I$13)+(100-$F$30)/#REF!)),Tables!$E$69),L24)) -> 
B32: Basket + Mix (B) | I32: Specimen No. | K32: 1 | L32: 2
B33: Mix (B-A) | E33: =IF(E31="","",+E32-E31) ->  | I33: A (Wt. Spec. in Air)
B34: Extr. Aggr. Wt (C) | D34: =IF(D31="","",+D31+D32) ->  | I34: C (Wt. Spec. in Water
B35: Washed Wt (D) | I35: B (Wt. Spec. S.S.D.)
B36: Pan Matl (E) | I36: B - C | K36: =IF(K33="","",+K35-K34) ->  | L36: =IF(L33="","",+L35-L34) ->  | M36: =IF(M33="","",+M35-M34) -> 
B37: Wt of Loss by Washing (W1) | E37: =IF(E35="","",E34-E35) ->  | I37: L.M. Spec. Grav. - Gmb | K37: =IF(K33=0,"",ROUND((K33/K36),Tables!$E$70)) ->  | L37: =IF(L33=0,"",ROUND((L33/L36),Tables!$E$70)) ->  | M37: =IF(M33=0,"",ROUND((M33/M36),Tables!$E$70)) -> 
B38: Total Agg. Passing 200 (W2) | E38: =IF(E36="","",+E37+E36) ->  | I38: Avg. L.M. Spec. Grav. | L38: =IF(K37="","",ROUND(AVERAGE(K37,L37,M37),Tables!$E$71)) -> 
B39: Precision (+/- 0.2 %) | E39: =IF(E35="","",ROUND(((E35-(D27+E36))/E35)*100,Tables!$E$54)) ->  | I39: % L.M. Density @ Ndes | L39: =IF(L38="","",ROUND(L38/L31*100,Tables!$E$72)) ->  | M39: =IF(L39="","",IF(OR(ROUND(L39,1)<O39,ROUND(L39,1)>Q39),"ERR","")) ->  | O39: ='Sublot 1'!O39 -> 94.5 | P39: - | Q39: ='Sublot 1'!Q39 -> 97.4 | R39: Enter %Density of GMM reqd. as listed on JMF
I40: % Air Voids | L40: =IF(L39="","",ROUND(100-(L38/L31*100),Tables!$E$73)) ->  | M40: =IF(L40="","",ABS(O40-L40)) ->  | O40: ='Sublot 1'!O40 -> 4 | Q40: %Air Voids Target | T40: (Superpave, SMA) = 4%, (RBL) = 2%
B41: MOISTURE & VOLATILE SAMPLE | I41: % V.M.A. | L41: =IF(L38="","",IF(L38>0,ROUND(100-L38*(100-L30)/L28,Tables!$E$74),Tables!E74)) ->  | M41: =IF(L41="","",IF(L41<O41,"ERR","")) ->  | O41: ='Sublot 1'!O41 -> 14 | Q41: Enter required field VMA from mix design.
B42: Pan | I42: =IF(M39="ERR","% L.M. Density out of range","") ->  | L42: =IF(M41="ERR"," %VMA out of range","") -> 
B43: Original Mix (W1m) | F43: =IF(E43="","",E43-E42) ->  | I43: Lab Molded Specimen @ Ndes | J43: # of Gyrations | K43: Specimen Height | L43: LSMG Ratio x LSMG @ Ndes) | M43: % Density (LSMG x 100 / Rice's)
B44: Dry Mix (W5m) | F44: =IF(E44="","",E44-E42) -> 
I45: Nini | J45: =VLOOKUP(O8,GTable,2,FALSE) -> 6 | L45: =IF(K45="","",ROUND((K46/K45),Tables!$E$59)*ROUND(L46,Tables!$E$60)) ->  | M45: =IF(AND(L46<>"",OR(K45="",K46="")),"ERR",IF(K46="","",ROUND(((L45*100)/$L$24),Tables!$E$61))) ->  | O45: =VLOOKUP(O8,GTable,5) -> 85.5 | P45: Nini Minimun Requirement
B46: SAND EQUIVALENT (AASHTO T-176) | I46: Ndes | J46: =VLOOKUP(O8,GTable,3,FALSE) -> 50 | L46: =IF(K46="","",L38) ->  | M46: =IF(K46="","",ROUND(((L46*100)/$L$24),Tables!$E$62)) ->  | O46: =VLOOKUP(O8,GTable,7) -> 91.5 | P46: Nini Maximum Requirement
B47: S.E. No. | D47: 1 | E47: 2 | F47: =+IF(F48="","",3) ->  | I47: =(IF(M46="","",IF(OR($M$45="ERR",OR($M45>$O46,$M$45<$O$45))," Fails Nini Requirements",""))) -> 
B48: Sand Reading | I48: ROADWAY DENSITY (OHD L-14 / OHD L-45)
B49: Clay Reading | H49: =IF(O49=1,"OHD L-14","") ->  | I49: =IF(O49=""," Avg. Rice Gravity"," Max. Theo. at JMF AC") -> Avg. Rice Gravity | L49: =IF(K58="","",IF(O49=1,ROUND((100/(($C29/$I$13)+(100-$C29)/L25)),Tables!$E$56),$L$24)) ->  | M49: Gmm | Q49: = 1 if density by PGmm by Pb at JMF in 411 pay table, else leave blank.
B50: Sand Equivalent | D50: =IF(D49="","",ROUNDUP(MROUND(D48/D49*100,0.1),0)) ->  | E50: =IF(E49="","",ROUNDUP(MROUND(E48/E49*100,0.1),0)) ->  | F50: =IF(F49="","",ROUNDUP(MROUND(F48/F49*100,0.1),0)) ->  | H50: =IF(O49=1,"05/27/08","") ->  | I50: Specimen No.
B51: Average Sand Equivalent | E51: =IF(D50="","",ROUNDUP(MROUND(SUM(D50:F50)/COUNT(D50:F50),0.1),0)) ->  | I51: Station
C52: =IF(E51=0,"",IF(E51<O50," Fails Minimum S.E. Requirements","")) ->  | I52: Expressway
B53: DENSITY TEST FOR ROADWAY CORES (OHD L-45) | I53: Lane
B54: A (Wt. Dry Spec. in Air) | D54: =IF(N(K61)>2,K58,"") ->  | E54: =IF(N(L61)>2,L58,"") ->  | F54: =IF(N(M61)>2,M58,"") ->  | I54: Thickness (in.) | W54: 1-2 | X54: 1-3 | Y54: 1-4 | Z54: 1-5 | AA54: 2-3 | AB54: 2-4 | AC54: 2-5 | AD54: 3-4 | AE54: 3-5 | AF54: 4-5
B55: Bag Weight | I55: Initial Wt. Spec. in Air | U55: =MAX(W55:AF55) ->  | W55: =IF(ABS('Sublot 1'!L65-'Sublot 2'!L65)>'Pay Factors'!$B$22,'Pay Factors'!$CS$55,0) ->  | X55: =IF(ABS('Sublot 1'!L65-'Sublot 3'!L65)>'Pay Factors'!$B$22,'Pay Factors'!$CS$55,0) ->  | Y55: =IF(ABS('Sublot 1'!L65-'Sublot 4'!L65)>'Pay Factors'!$B$22,'Pay Factors'!$CS$55,0) ->  | Z55: =IF(ABS('Sublot 1'!L65-'Sublot 5'!L65)>'Pay Factors'!$B$22,'Pay Factors'!$CS$55,0) ->  | AA55: =IF(ABS('Sublot 2'!L65-'Sublot 3'!L65)>'Pay Factors'!$B$22,'Pay Factors'!$CS$55,0) ->  | AB55: =IF(ABS('Sublot 2'!L65-'Sublot 4'!L65)>'Pay Factors'!$B$22,'Pay Factors'!$CS$55,0) ->  | AC55: =IF(ABS('Sublot 2'!L65-'Sublot 5'!L65)>'Pay Factors'!$B$22,'Pay Factors'!$CS$55,0) ->  | AD55: =IF(ABS('Sublot 3'!L65-'Sublot 4'!L65)>'Pay Factors'!$B$22,'Pay Factors'!$CS$55,0) ->  | AE55: =IF(ABS('Sublot 3'!L65-'Sublot 5'!L65)>'Pay Factors'!$B$22,'Pay Factors'!$CS$55,0) ->  | AF55: =IF(ABS('Sublot 4'!L65-'Sublot 5'!L65)>'Pay Factors'!$B$22,'Pay Factors'!$CS$55,0) -> 
B56: B (Sealed Wt. in Air) | D56: =IF(D54="","",D54+D55) ->  | E56: =IF(E54="","",E54+E55) ->  | F56: =IF(F54="","",F54+F55) ->  | I56: C (Wt. Spec. in Water) | O56: ='Sublot 1'!O56 -> 45 | P56: Minimum S.E. Requirement
B57: E (Sealed Spec. Wt. in H2O) | I57: B (Wt. Spec. S.S.D.)
B58: C (Final Wt. Dry Spec. in Air) | I58: A (Wt. Dry Spec. in Air)
B59: F (Bag's Gsa) | D59: =IF(OR(D58="",D54=""),"",IF((D55)>=35,0.8596-((0.00166*D54)/(D55)),IF((D55)<35,0.8121-((0.000566*D54)/(D55)),"ERR"))) ->  | E59: =IF(OR(E58="",E54=""),"",IF((E55)>=35,0.8596-((0.00166*E54)/(E55)),IF((E55)<35,0.8121-((0.000566*E54)/(E55)),"ERR"))) ->  | F59: =IF(OR(F58="",F54=""),"",IF((F55)>=35,0.8596-((0.00166*F54)/(F55)),IF((F55)<35,0.8121-((0.000566*F54)/(F55)),"ERR"))) ->  | I59: B - C | K59: =IF(K58="","",+K57-K56) ->  | L59: =IF(L58="","",+L57-L56) ->  | M59: =IF(M58="","",+M57-M56) -> 
B60: Core Spec. Grav. ( Gmb ) | D60: =IF(OR(D54="",D55=""),"",ROUND(D54/(D58+D55-D57-(D55)/D59),Tables!$E$37)) ->  | E60: =IF(OR(E54="",E55=""),"",ROUND(E54/(E58+E55-E57-(E55)/E59),Tables!$E$37)) ->  | F60: =IF(OR(F54="",F55=""),"",ROUND(F54/(F58+F55-F57-(F55)/F59),Tables!$E$37)) ->  | I60: Core Spec. Grav. ( Gmb ) | K60: =IF(K59="","",ROUND((K58/K59),Tables!$E$77)) ->  | L60: =IF(L59="","",ROUND((L58/L59),Tables!$E$77)) ->  | M60: =IF(M59="","",ROUND((M58/M59),Tables!$E$77)) ->  | O60: =COUNT(K60:M60) -> 0 | P60: No. of Cores
D61: =IF(D58="","",IF(AND(D54-D58<D54*0.0008,D58-D54<=D54*0.0004),"","REDO")) ->  | E61: =IF(E58="","",IF(AND(E54-E58<E54*0.0008,E58-E54<=E54*0.0004),"","REDO")) ->  | F61: =IF(F58="","",IF(AND(F54-F58<F54*0.0008,F58-F54<=F54*0.0004),"","REDO")) ->  | I61: % Absorption | K61: =IF(K56="","",ROUND((K57-K58)/(K57-K56)*100,Tables!$E$78)) ->  | L61: =IF(L58="","",ROUND((L57-L58)/(L57-L56)*100,Tables!$E$78)) ->  | M61: =IF(M58="","",ROUND((M57-M58)/(M57-M56)*100,Tables!$E$78)) -> 
D62: =IF(D60<>"",D60,K60) ->  | E62: =IF(E60<>"",E60,L60) ->  | F62: =IF(F60<>"",F60,M60) ->  | I62: Avg. Core Sp. Gr. ( Gmb ) | L62: =IF(K60="","",ROUND(AVERAGE(D62:F62),Tables!$E$79)) -> 
I63: % Roadway Density | K63: =IF(K64="","",IF(K64="L-14",ROUND(K60/$L$49*100,Tables!$E$80),ROUND(D62/$L$49*100,Tables!$E$80))) ->  | L63: =IF(L64="","",IF(L64="L-14",ROUND(L60/$L$49*100,Tables!$E$80),ROUND(E62/$L$49*100,Tables!$E$80))) ->  | M63: =IF(M64="","",IF(M64="L-14",ROUND(M60/$L$49*100,Tables!$E$80),ROUND(F62/$L$49*100,Tables!$E$80))) -> 
I64: Density Test Method | K64: =IF(K58="","",IF(AND(K61>2,D60>0),"L-45 ","L-14 ")) ->  | L64: =IF(L58="","",IF(AND(L61>2,E60>0),"L-45 ","L-14 ")) ->  | M64: =IF(M58="","",IF(AND(M61>2,F60>0),"L-45 ","L-14 ")) -> 
B65: Signature / Cert. ID | E65: / | I65: % Avg. Roadway Density | L65: =IF(L49="","",IF(L49>0,ROUND(L62/L49*100,Tables!$E$81),"")) -> 
I66: =IF(OR(N(K61)>2,N(L61)>2,N(M61)>2),"A core absorption is > 2.0%. OHD L-45 is required for it.","") -> 
J67: =IF(L65="","",IF(OR(L65>97,L65<88.1)," Fails Roadway Density Requirements","")) -> 

Sheet Pay Factors
I1: ='Sublot 1'!A1 -> v 1.17 | J1: OKLAHOMA DEPARTMENT OF TRANSPORTATION
I2: ='Sublot 1'!G8 & " - ASPHALT CONCRETE PAVING" -> - ASPHALT CONCRETE PAVING
I3: PROJECT NO: | K3: =IF('Sublot 1'!B6="","",'Sublot 1'!B6) ->  | P3: COUNTY: | T3: DATE:
I5: CONTRACTOR: | K5: =IF('Sublot 1'!B7="","",'Sublot 1'!B7) ->  | P5: ASPHALT DESIGN NO: | R5: =IF('Sublot 1'!L8="","",'Sublot 1'!L8) -> 
I7: 250 TON - 1000 TON = ONE SUBLOT 4,000 TON = ONE LOT
O9: LOT NO. | P9: ='Sublot 1'!E13 -> 1
I11: =IF('Sublot 5'!D29>0,5,IF('Sublot 4'!D29>0,4,IF('Sublot 3'!D29>0,3,IF('Sublot 2'!D29>0,2,1)))) -> 1 | J11: SUBLOTS | L11: Total Tons | M11: ='Sublot 1'!I10 -> 0 | N11: Total Tons | O11: ='Sublot 2'!I10 -> 0 | P11: Total Tons | Q11: ='Sublot 3'!I10 -> 0 | R11: Total Tons | S11: ='Sublot 4'!I10 -> 0 | T11: Total Tons | U11: ='Sublot 5'!I10 -> 0
L12: =IF('Sublot 1'!E12="","",'Sublot 1'!E12) ->  | N12: =IF('Sublot 2'!E12="","",'Sublot 2'!E12) ->  | P12: =IF('Sublot 3'!E12="","",'Sublot 3'!E12) ->  | R12: =IF('Sublot 4'!E12="","",'Sublot 4'!E12) ->  | T12: =IF('Sublot 5'!E12="","",'Sublot 5'!E12) -> 
J13: SAMPLE ID | L13: =IF('Sublot 1'!B8="","",'Sublot 1'!B8) ->  | N13: =IF('Sublot 2'!B8="","",'Sublot 2'!B8) ->  | P13: =IF('Sublot 3'!B8="","",'Sublot 3'!B8) ->  | R13: =IF('Sublot 4'!B8="","",'Sublot 4'!B8) ->  | T13: =IF('Sublot 5'!B8="","",'Sublot 5'!B8) -> 
B14: TAB RIGHT | I14: SIEVE | J14: SPEC. | L14: SUBLOT | M14: DEVIA. | N14: SUBLOT | O14: DEVIA. | P14: SUBLOT | Q14: DEVIA. | R14: SUBLOT | S14: DEVIA. | T14: SUBLOT | U14: DEVIA. | V14: AVG. | W14: FACTOR
I15: SIZE | L15: ='Sublot 1'!$G$13 -> 1 | N15: ='Sublot 2'!$G$13 -> 2 | P15: ='Sublot 3'!$G$13 -> 3 | R15: ='Sublot 4'!$G$13 -> 4 | T15: ='Sublot 5'!$G$13 -> 5 | V15: DEV.
I16: AGGR.
G17: ='Sublot 1'!C16 ->  | I17: 1-1/2 | J17: =IF(G17="","",+G17) ->  | L17: ='Sublot 1'!F16 ->  | M17: =IF(L17="",0,ABS($G17-L17)) -> 0 | N17: ='Sublot 2'!F16 ->  | O17: =IF(N17="",0,ABS($G17-N17)) -> 0 | P17: ='Sublot 3'!F16 ->  | Q17: =IF(P17="",0,ABS($G17-P17)) -> 0 | R17: ='Sublot 4'!F16 ->  | S17: =IF(R17="",0,ABS($G17-R17)) -> 0 | T17: ='Sublot 5'!F16 ->  | U17: =IF(T17="",0,ABS($G17-T17)) -> 0 | V17: =ROUND((M17+O17+Q17+S17+U17)/$I$11,2) -> 0 | W17: =IF(AND(V17>=$BO$51,V17<=$BP$51),$BR$51,IF(AND(V17>=$BO$52,V17<=$BP$52),$BQ$52-($BS$52*V17),IF(AND(V17>=$BO$53,V17<=$BP$53),$BQ$53-($BS$53*V17),IF(V17>$BP$54,$BR$54,"")))) -> 1
G18: ='Sublot 1'!C17 ->  | I18: 1 | L18: ='Sublot 1'!F17 ->  | M18: 0 | N18: ='Sublot 2'!F17 ->  | O18: 0 | P18: ='Sublot 3'!F17 ->  | Q18: =IF(P18="",0,ABS($G18-P18)) -> 0 | R18: ='Sublot 4'!F17 ->  | S18: 0 | T18: ='Sublot 5'!F17 ->  | U18: 0 | V18: =ROUND((M18+O18+Q18+S18+U18)/$I$11,2) -> 0 | W18: 1
G19: ='Sublot 1'!C18 ->  | I19: 3/4 | L19: ='Sublot 1'!F18 ->  | M19: 0 | N19: ='Sublot 2'!F18 ->  | O19: 0 | P19: ='Sublot 3'!F18 ->  | Q19: 0 | R19: ='Sublot 4'!F18 ->  | S19: 0 | T19: ='Sublot 5'!F18 ->  | U19: 0 | V19: 0 | W19: 1
B20: 33.45 | C20: CUP (Contract Unit Price) | G20: ='Sublot 1'!C19 ->  | I20: 1/2 | L20: ='Sublot 1'!F19 ->  | M20: 0 | N20: ='Sublot 2'!F19 ->  | O20: 0 | P20: ='Sublot 3'!F19 ->  | Q20: 0 | R20: ='Sublot 4'!F19 ->  | S20: 0 | T20: ='Sublot 5'!F19 ->  | U20: 0 | V20: 0 | W20: 1
G21: ='Sublot 1'!C20 ->  | I21: 3/8 | L21: ='Sublot 1'!F20 ->  | M21: 0 | N21: ='Sublot 2'!F20 ->  | O21: 0 | P21: ='Sublot 3'!F20 ->  | Q21: 0 | R21: ='Sublot 4'!F20 ->  | S21: 0 | T21: ='Sublot 5'!F20 ->  | U21: 0 | V21: 0 | W21: 1
B22: 4 | C22: % AVERAGE DENSITY REQUIREMENT: | G22: ='Sublot 1'!C21 ->  | I22: 4 | L22: ='Sublot 1'!F21 ->  | M22: 0 | N22: ='Sublot 2'!F21 ->  | O22: 0 | P22: ='Sublot 3'!F21 ->  | Q22: 0 | R22: ='Sublot 4'!F21 ->  | S22: 0 | T22: ='Sublot 5'!F21 ->  | U22: 0 | V22: 0 | W22: 1
B23: Enter 4.0 for New Const. or 5.0 for Resurfacing | G23: ='Sublot 1'!C22 ->  | I23: 8 | L23: ='Sublot 1'!F22 ->  | M23: 0 | N23: ='Sublot 2'!F22 ->  | O23: 0 | P23: ='Sublot 3'!F22 ->  | Q23: 0 | R23: ='Sublot 4'!F22 ->  | S23: 0 | T23: ='Sublot 5'!F22 ->  | U23: 0 | V23: 0 | W23: =IF(AND(V23>=$BO$60,V23<=$BP$60),$BR$60,IF(AND(V23>=$BO$61,V23<=$BP$61),$BQ$61-($BS$61*V23),IF(AND(V23>=$BO$62,V23<=$BP$62),$BQ$62-($BS$62*V23),IF(V23>$BP$63,$BR$63,"")))) -> 1
G24: ='Sublot 1'!C23 ->  | I24: 16 | L24: ='Sublot 1'!F23 ->  | M24: 0 | N24: ='Sublot 2'!F23 ->  | O24: 0 | P24: ='Sublot 3'!F23 ->  | Q24: 0 | R24: ='Sublot 4'!F23 ->  | S24: 0 | T24: ='Sublot 5'!F23 ->  | U24: 0 | V24: 0 | W24: =IF(AND(V24>=$BO$60,V24<=$BP$60),$BR$60,IF(AND(V24>=$BO$61,V24<=$BP$61),$BQ$61-($BS$61*V24),IF(AND(V24>=$BO$62,V24<=$BP$62),$BQ$62-($BS$62*V24),IF(V24>$BP$63,$BR$63,"")))) -> 1
B25: =IF('Sublot 1'!O40="","",'Sublot 1'!O40) -> 4 | C25: Enter Air Voids Target | G25: ='Sublot 1'!C24 ->  | I25: 30 | L25: ='Sublot 1'!F24 ->  | M25: 0 | N25: ='Sublot 2'!F24 ->  | O25: 0 | P25: ='Sublot 3'!F24 ->  | Q25: 0 | R25: ='Sublot 4'!F24 ->  | S25: 0 | T25: ='Sublot 5'!F24 ->  | U25: 0 | V25: 0 | W25: =IF(AND(V25>=$BO$60,V25<=$BP$60),$BR$60,IF(AND(V25>=$BO$61,V25<=$BP$61),$BQ$61-($BS$61*V25),IF(AND(V25>=$BO$62,V25<=$BP$62),$BQ$62-($BS$62*V25),IF(V25>$BP$63,$BR$63,"")))) -> 1
G26: ='Sublot 1'!C25 ->  | I26: 50 | L26: ='Sublot 1'!F25 ->  | M26: 0 | N26: ='Sublot 2'!F25 ->  | O26: 0 | P26: ='Sublot 3'!F25 ->  | Q26: 0 | R26: ='Sublot 4'!F25 ->  | S26: 0 | T26: ='Sublot 5'!F25 ->  | U26: 0 | V26: 0 | W26: =IF(AND(V26>=$BO$60,V26<=$BP$60),$BR$60,IF(AND(V26>=$BO$61,V26<=$BP$61),$BQ$61-($BS$61*V26),IF(AND(V26>=$BO$62,V26<=$BP$62),$BQ$62-($BS$62*V26),IF(V26>$BP$63,$BR$63,"")))) -> 1
B27: =100-'Sublot 1'!O40-2 -> 94 | C27: Enter Roadway Density Target | G27: ='Sublot 1'!C26 ->  | I27: 100 | L27: ='Sublot 1'!F26 ->  | M27: 0 | N27: ='Sublot 2'!F26 ->  | O27: 0 | P27: ='Sublot 3'!F26 ->  | Q27: 0 | R27: ='Sublot 4'!F26 ->  | S27: 0 | T27: ='Sublot 5'!F26 ->  | U27: 0 | V27: 0 | W27: =IF(AND(V27>=$BO$60,V27<=$BP$60),$BR$60,IF(AND(V27>=$BO$61,V27<=$BP$61),$BQ$61-($BS$61*V27),IF(AND(V27>=$BO$62,V27<=$BP$62),$BQ$62-($BS$62*V27),IF(V27>$BP$63,$BR$63,"")))) -> 1
G28: ='Sublot 1'!C27 ->  | I28: 200 | L28: ='Sublot 1'!F28 ->  | M28: 0 | N28: ='Sublot 2'!F28 ->  | O28: 0 | P28: ='Sublot 3'!F28 ->  | Q28: 0 | R28: ='Sublot 4'!F28 ->  | S28: 0 | T28: ='Sublot 5'!F28 ->  | U28: 0 | V28: 0 | W28: =IF(AND(V28>=$BO$69,V28<=$BP$69),$BR$69,IF(AND(V28>=$BO$70,V28<=$BP$70),$BQ$70-($BS$70*V28),IF(AND(V28>=$BO$71,V28<=$BP$71),$BQ$71-($BS$71*V28),IF(V28>$BP$72,$BR$72,"")))) -> 1
B29: %Average Density, Air Voids, & Roadway Density
B30: Target must be obtained from the Special Provisions | V30: FACTOR
W31: =MIN(W17:W28) -> 1
G33: ='Sublot 1'!C29 ->  | I33: A/C CONTENT | L33: ='Sublot 1'!F30 ->  | M33: =IF(L33="",0,ABS($G$33-L33)) -> 0 | N33: ='Sublot 2'!F30 ->  | O33: =IF(N33="",0,ABS($G$33-N33)) -> 0 | P33: ='Sublot 3'!F30 ->  | Q33: =IF(P33="",0,ABS($G$33-P33)) -> 0 | R33: ='Sublot 4'!F30 ->  | S33: =IF(R33="",0,ABS($G$33-R33)) -> 0 | T33: ='Sublot 5'!F30 ->  | U33: =IF(T33="",0,ABS($G$33-T33)) -> 0 | V33: FACTOR
I34: =G33 ->  | J34: TOTAL AVG. DEVIATION | M34: =ROUND(SUM(M33+O33+Q33+S33+U33)/$I$11,2) -> 0 | W34: =IF(AND(M34>=$BD$51,M34<=$BE$51),$BG$51,IF(AND(M34>=$BD$52,M34<=$BE$52),$BF$52-M34,IF(AND(M34>=$BD$53,M34<=$BE$53),$BF$53-($BH$53*M34),IF(M34>$BE$54,$BG$54,"")))) -> 1
G36: =B25 -> 4 | I36: AIR VOIDS | L36: ='Sublot 1'!L40 ->  | M36: =IF(L36="",0,ABS($G$36-L36)) -> 0 | N36: ='Sublot 2'!L40 ->  | O36: =IF(N36="",0,ABS($G$36-N36)) -> 0 | P36: ='Sublot 3'!L40 ->  | Q36: =IF(P36="",0,ABS($G$36-P36)) -> 0 | R36: ='Sublot 4'!L40 ->  | S36: =IF(R36="",0,ABS($G$36-R36)) -> 0 | T36: ='Sublot 5'!L40 ->  | U36: =IF(T36="",0,ABS($G$36-T36)) -> 0 | V36: FACTOR
I37: =G36 -> 4 | J37: TOTAL AVG. DEVIATION | M37: =ROUND(SUM(M36+O36+Q36+S36+U36)/$I$11,2) -> 0 | W37: =IF(AND(M37>=$BZ$51,M37<=$CA$51),$CE$51,IF(AND(M37>=$BZ$52,M37<=$CA$52),($CB$52*(M37*M37))+($CE$52*M37)-$CG$52,IF(M37>$CA$53,$CE$53,""))) -> 1
G39: =B27 -> 94 | I39: ROADWAY DENSITY | L39: ='Sublot 1'!L65 ->  | M39: =IF(L39="",0,SUM(L39-$G$39)) -> 0 | N39: ='Sublot 2'!L65 ->  | O39: =IF(N39="",0,SUM(N39-$G$39)) -> 0 | P39: ='Sublot 3'!L65 ->  | Q39: =IF(P39="",0,SUM(P39-$G$39)) -> 0 | R39: ='Sublot 4'!L65 ->  | S39: =IF(R39="",0,SUM(R39-$G$39)) -> 0 | T39: ='Sublot 5'!L65 ->  | U39: =IF(T39="",0,SUM(T39-$G$39)) -> 0 | V39: FACTOR | Z39: =IF(M40>$CL$51,$CP$51,IF(AND(M40<=$CK$52,M40>=$CL$52),$CP$52,IF(AND(M40<=$CK$53,M40>=$CL$53),ROUND(($CM$53*(M40*M40))-($CP$53*M40)+$CR$53,2),IF(M40<$CL$54,$CP$54,"")))) -> 1 | AA39: 1 | AB39: 2 | AC39: 3 | AD39: 4 | AE39: 5
I40: =G39 -> 94 | J40: TOTAL AVG. DEVIATION | M40: =ROUND(SUM(M39+O39+Q39+S39+U39)/$I$11,2) -> 0 | W40: =IF('Sublot 1'!L65="",1,MIN(Z39:Z40)) -> 1 | Z40: =IF(I11=1,IF(AA40=0,1,CS55),IF(I11=2,IF(AB43=1,1,CS55),IF(I11=3,IF(AC43=1,1,CS55),IF(I11=4,IF(AD43=1,1,CS55),IF(I11=5,IF(AE43=1,1,CS55)))))) ->  | AA40: =IF(AF45-AA45>B22,CS55,0) ->  | AB40: ='Sublot 2'!U55 ->  | AC40: ='Sublot 3'!U55 ->  | AD40: ='Sublot 4'!U55 ->  | AE40: ='Sublot 5'!U55 -> 
J43: =IF(AND(I11=2,Z40<Z39),"**NOTE: EXCEEDS ALLOWABLE RANGE BETWEEN HIGHEST AND LOWEST DENSITY IN SUBLOTS.",IF(AND(I11=3,Z40<Z39),"**NOTE: EXCEEDS ALLOWABLE RANGE BETWEEN HIGHEST AND LOWEST DENSITY IN SUBLOTS.",IF(AND(I11=4,Z40<Z39),"**NOTE: EXCEEDS ALLOWABLE RANGE BETWEEN HIGHEST AND LOWEST DENSITY IN SUBLOTS.",""))) ->  | AB43: =IF(I11=2,IF(AND(AA40=0,AB40=0),1)) -> FALSE | AC43: =IF(I11=1,IF(AA40=0,1),IF(I11=3,IF(AND(AND(AA40=0,AB40=0),AC40=0),1))) ->  | AD43: =IF(I11=1,IF(AA40=0,1),IF(I11=4,IF(AND(AND(AND(AA40=0,AB40=0),AC40=0),AD40=0),1))) ->  | AE43: =IF(I11=1,IF(AA40=0,1),IF(I11=5,IF(AND(AND(AND(AND(AA40=0,AB40=0),AC40=0),AD40=0),AE40=0),1))) -> 
N44: =IF('Sublot 1'!L65="","",IF($Z$39<=$Z$40,"",IF(AA46=1,"Sublot #1",IF(ABS($AF$45-AA45>$B$22),"Sublot #1","")))) ->  | O44: =IF('Sublot 2'!L65="","",IF($Z$39<=$Z$40,"",IF(AB46=1,"Sublot #2",IF(ABS($AF$45-AB45>$B$22),"Sublot #2","")))) ->  | P44: =IF('Sublot 3'!L65="","",IF($Z$39<=$Z$40,"",IF(AC46=1,"Sublot #3",IF(ABS($AF$45-AC45>$B$22),"Sublot #3","")))) ->  | Q44: =IF('Sublot 4'!L65="","",IF($Z$39<=$Z$40,"",IF(AD46=1,"Sublot #4",IF(ABS($AF$45-AD45>$B$22),"Sublot #4","")))) ->  | R44: =(IF('Sublot 5'!L65="","",IF($Z$39<=$Z$40,"",IF(AE46=1,"Sublot #5",IF(ABS($AF$45-AE45>$B$22),"Sublot #5",""))))) -> 
L45: AC CONTENT | N45: AIR VOIDS | P45: DENSITY | R45: GRADATION | AA45: =IF('Sublot 1'!L65="","",'Sublot 1'!L65) ->  | AB45: =IF('Sublot 2'!L65="","",'Sublot 2'!L65) ->  | AC45: =IF('Sublot 3'!L65="","",'Sublot 3'!L65) ->  | AD45: =IF('Sublot 4'!L65="","",'Sublot 4'!L65) ->  | AE45: =IF('Sublot 5'!L65="","",'Sublot 5'!L65) ->  | AF45: =MAX(AA45:AE45) -> 0
L46: (AC) | N46: (AV) | P46: (D) | R46: (G) | AA46: =IF(AA45=$AF$45,1,"") ->  | AB46: =IF(AB45=$AF$45,1,"") ->  | AC46: =IF(AC45=$AF$45,1,"") ->  | AD46: =IF(AD45=$AF$45,1,"") ->  | AE46: =IF(AE45=$AF$45,1,"") -> 
L47: ----------------------- | N47: ----------------------- | P47: ----------------------- | R47: ----------------------- | BD47: =I11 -> 1
P48: =IF('Sublot 1'!L59="","",IF(AND(I11=1,Z40<Z39),"**",IF(AND(I11=2,Z40<Z39),"**",IF(AND(I11=3,Z40<Z39),"**",IF(AND(I11=4,Z40<Z39),"**",IF(AND(I11=5,Z40<Z39),"**","")))))) ->  | BC48: Average of Deviations from Target (without regard to signs) | BO48: Average of Deviations from Target (without regard to signs) | BZ48: Average of Deviations from Target (without regard to signs) | CJ48: Average of Deviations from Target (considering signs)
L49: =W34 -> 1 | N49: =W37 -> 1 | P49: =W40 -> 1 | R49: =W31 -> 1 | BC49: CHARACTERISTICS | BD49: 1, 2, 3 or 4 | BF49: PAY | BN49: CHARACTERISTICS | BO49: 1, 2, 3 or 4 | BQ49: PAY | BY49: CHARACTERISTICS | BZ49: 1, 2, 3 or 4 | CB49: PAY | CJ49: CHARACTERISTICS | CK49: 1, 2, 3 or 4 | CM49: PAY
BD50: TESTS | BF50: FACTOR | BO50: TESTS | BQ50: FACTOR | BZ50: TESTS | CB50: FACTOR | CK50: TESTS | CM50: FACTOR
BC51: ASPHALT CEMENT | BD51: =Tables!D5*2/(SQRT($I$11)) -> 0 | BE51: =ROUND(Tables!E5*2/(SQRT($I$11)),2) -> 0.7 | BG51: =Tables!G5 -> 1 | BN51: GRADATION | BO51: =ROUND(Tables!O5*2/(SQRT($I$11)),2) -> 0 | BP51: =ROUND(Tables!P5*2/(SQRT($I$11)),2) -> 8 | BR51: =Tables!R5 -> 1 | BY51: AIR VOIDS | BZ51: =ROUND(Tables!Z5*2/(SQRT($I$11)),2) -> 0 | CA51: =(ROUND(Tables!AA5*2/(SQRT($I$11)),2)) -> 2.5 | CE51: =Tables!AE5 -> 1 | CJ51: ROADWAY DENSITY | CL51: =(ROUND(Tables!AL5*2/(SQRT($I$11)),2)) -> 4 | CP51: =Tables!AP5 -> 0
BC52: CONTENT | BD52: =IF($I$11=1,BE51+0.01,IF($I$11=2,BE51+0.01,IF($I$11=3,BE51+0.01,ROUND(Tables!D6*2/(SQRT($I$11)),2)))) -> 0.71 | BE52: =ROUND(Tables!E6*2/(SQRT($I$11)),2) -> 0.9 | BF52: =Tables!F6 -> 1.35 | BG52: - | BH52: =Tables!H6 -> x | BI52: x | BN52: % Passing No. 4 & | BO52: =BP51+0.01 -> 8.01 | BP52: =ROUND(Tables!P6*2/(SQRT($I$11)),2) -> 14 | BQ52: =Tables!Q6 -> 1.16 | BR52: - | BS52: =Tables!S6 -> 0.04 | BT52: x | BY52: (Lab Molded | BZ52: =CA51+0.01 -> 2.51 | CA52: =(ROUND(Tables!AA6*2/(SQRT($I$11)),2)) -> 3 | CB52: =Tables!AB6 -> -2.4 | CC52: x2 + | CE52: =Tables!AE6 -> 5.8 | CF52: x - | CG52: =Tables!AG6 -> 2.5 | CJ52: (Core or Nuclear) | CK52: =(ROUND(Tables!AK6*2/(SQRT($I$11)),2)) -> 4 | CL52: =(ROUND(Tables!AL6*2/(SQRT($I$11)),2)) -> -2 | CP52: =Tables!AP6 -> 1
O53: 3(AC + AV + D) + G | BA53: (Extraction, Nuclear or Ignition Oven) | BD53: =IF($I$11=1,BE52+0.01,IF($I$11=2,BE52+0.01,IF($I$11=3,BE52+0.01,ROUND(Tables!D7*2/(SQRT($I$11)),2)))) -> 0.91 | BE53: =ROUND(Tables!E7*2/(SQRT($I$11)),2) -> 1 | BF53: =Tables!F7 -> 1.8 | BG53: - | BH53: =Tables!H7 -> 2 | BI53: x | BN53: Larger Sieve | BO53: =BP52+0.01 -> 14.01 | BP53: =ROUND(Tables!P7*2/(SQRT($I$11)),2) -> 18 | BQ53: 1.3 | BR53: - | BS53: 0.06 | BT53: x | BY53: specimens) | CA53: =(ROUND(Tables!AA7*2/(SQRT($I$11)),2)) -> 3 | CE53: =Tables!AE7 -> 0 | CI53: Target | CJ53: 94% of Maximum | CK53: =CL52-0.01 -> -2.01 | CL53: =(ROUND(Tables!AL7*2/(SQRT($I$11)),2)) -> -8 | CM53: =Tables!AM7 -> -0.056 | CN53: x2 - | CP53: =Tables!AP7 -> 0.112 | CQ53: x + | CR53: =Tables!AR7 -> 0.944
O54: 10 | BB54: Target | BC54: JMF - Percent (%) | BE54: =ROUND(Tables!E8*2/(SQRT($I$11)),2) -> 1 | BG54: =Tables!G8 -> 0 | BJ54: Unacceptable | BM54: Target | BN54: JMF - Percent (%) | BP54: =ROUND(Tables!P8*2/(SQRT($I$11)),2) -> 18 | BR54: =Tables!R8 -> 0 | BU54: Unacceptable | BY54: Target | CJ54: Theoretical | CL54: =(ROUND(Tables!AL8*2/(SQRT($I$11)),2)) -> -8 | CP54: =Tables!AP8 -> 0 | CS54: Unacceptable
BY55: 3 Million ESALS or more - 5% | CI55: PAYFACTOR FOR UNIFORM STRENGTH >4 % BETWEEN HIGHEST & LOWEST TESTS = | CS55: =Tables!AS9 -> 0.98
BY56: 0.3 to 3 Million ESALS - 4%
K57: CUP (Contract Unit Price)= | S57: =B20 -> 33.45 | BC57: Average of Deviations from Target (without regard to signs) | BO57: Average of Deviations from Target (without regard to signs) | BY57: 0.3 Million ESALS or Less - 3%
BC58: CHARACTERISTICS | BD58: 1, 2, 3 or 4 | BF58: PAY | BN58: CHARACTERISTICS | BO58: 1, 2, 3 or 4 | BQ58: PAY
K59: QL (Quantity of Asphalt per Lot / TONS)= | S59: =M11+O11+Q11+S11+U11 -> 0 | BD59: TESTS | BF59: FACTOR | BO59: TESTS | BQ59: FACTOR | BY59: 5000 ADT or more - 5%
BC60: ASPHALT CEMENT | BD60: =Tables!D14*2/(SQRT($I$11)) -> 0 | BE60: =Tables!E14*2/(SQRT($I$11)) -> 0.3 | BG60: =Tables!G14 -> 1 | BN60: GRADATION | BO60: =ROUND(Tables!O14*2/(SQRT($I$11)),2) -> 0 | BP60: =ROUND(Tables!P14*2/(SQRT($I$11)),2) -> 6.5 | BR60: =Tables!R14 -> 1 | BY60: 1000 - 5000 ADT - 4%
BC61: CONTENT | BD61: =Tables!D15*2/(SQRT($I$11)) -> 0.32 | BE61: =Tables!E15*2/(SQRT($I$11)) -> 0.42 | BF61: =Tables!F15 -> 1.25 | BG61: - | BH61: =Tables!H15 -> 1.67 | BI61: x | BM61: % Passing No. 8 Sieve | BO61: =BP60+0.01 -> 6.51 | BP61: =ROUND(Tables!P15*2/(SQRT($I$11)),2) -> 9.5 | BQ61: =Tables!Q15 -> 1.13 | BR61: - | BS61: =Tables!S15 -> 0.04 | BT61: x | BY61: 1000 ADT or less - 3%
BC62: (Digital Printout) | BD62: =Tables!D16*2/(SQRT($I$11)) -> 0.44 | BE62: =Tables!E16*2/(SQRT($I$11)) -> 0.46 | BF62: =Tables!F16 -> 1.95 | BG62: - | BH62: =Tables!H16 -> 5 | BI62: x | BM62: thru No. 100 Sieve | BO62: 9.51 | BP62: =ROUND(Tables!P16*2/(SQRT($I$11)),2) -> 15.5 | BQ62: 1.225 | BR62: - | BS62: 0.06 | BT62: x
L63: * | M63: Combined Pay Factor= | S63: =IF((3*(L49+N49+P49)+R49)/10<=0.9,"NO PAY OPTION!!!",ROUND(((3*(L49+N49+P49)+R49)/10),2)) -> 1 | BB63: Target | BC63: JMF - Percent (%) | BE63: =Tables!E17*2/(SQRT($I$11)) -> 0.48 | BG63: =Tables!G17 -> 0 | BJ63: Unacceptable | BM63: Target | BN63: JMF - Percent (%) | BP63: =ROUND(Tables!P17*2/(SQRT($I$11)),2) -> 15.5 | BR63: =Tables!R17 -> 0 | BU63: Unacceptable
Q64: =IF(S63="NO PAY OPTION!!!","SEE SPECIAL PROVISIONS FOOTNOTE #3","") -> 
L65: * | M65: Pay Adjustment on Lots= | R65: =IF((3*(L49+N49+P49)+R49)/10<=0.9,"",(S63-1)*(S57)*(S59)) -> 0
BO66: Average of Deviations from Target (without regard to signs)
BN67: CHARACTERISTICS | BO67: 1, 2, 3 or 4 | BQ67: PAY
BO68: TESTS | BQ68: FACTOR
BN69: GRADATION | BO69: =ROUND(Tables!O23*2/(SQRT($I$11)),2) -> 0 | BP69: =ROUND(Tables!P23*2/(SQRT($I$11)),2) -> 3 | BR69: =Tables!R23 -> 1
BM70: % Passing No. 200 Sieve | BO70: =BP69+0.01 -> 3.01 | BP70: =ROUND(Tables!P24*2/(SQRT($I$11)),2) -> 4.2 | BQ70: =Tables!Q24 -> 1.15 | BR70: - | BS70: =Tables!S24 -> 0.1 | BT70: x
BM71: thru No. 100 Sieve | BO71: 4.21 | BP71: =ROUND(Tables!P25*2/(SQRT($I$11)),2) -> 6.6 | BQ71: 1.255 | BR71: - | BS71: 0.15 | BT71: x
BM72: Target | BN72: JMF - Percent (%) | BP72: =ROUND(Tables!P26*2/(SQRT($I$11)),2) -> 6.6 | BR72: =Tables!R26 -> 0 | BU72: Unacceptable
DV243: {BRANCH O74}

Sheet Tables
C2: Average of Deviations from Target (without regard to signs) | O2: Average of Deviations from Target (without regard to signs) | Z2: Average of Deviations from Target (without regard to signs) | AJ2: Average of Deviations from Target (considering signs)
C3: CHARACTERISTICS | D3: 4 | F3: PAY | N3: CHARACTERISTICS | O3: 4 | Q3: PAY | Y3: CHARACTERISTICS | Z3: 4 | AB3: PAY | AJ3: CHARACTERISTICS | AK3: 4 | AM3: PAY
D4: TESTS | F4: FACTOR | O4: TESTS | Q4: FACTOR | Z4: TESTS | AB4: FACTOR | AK4: TESTS | AM4: FACTOR
C5: ASPHALT CEMENT | D5: 0 | E5: 0.35 | G5: 1 | N5: GRADATION | O5: 0 | P5: 4 | R5: 1 | Y5: AIR VOIDS | Z5: 0 | AA5: 1.25 | AE5: 1 | AJ5: ROADWAY DENSITY | AL5: 2 | AP5: 0
C6: CONTENT | D6: 0.36 | E6: 0.45 | F6: 1.35 | G6: - | H6: x | I6: x | N6: % Passing No. 4 & | O6: 4.01 | P6: 7 | Q6: 1.16 | R6: - | S6: 0.04 | T6: x | Y6: (Lab Molded | Z6: 1.26 | AA6: 1.5 | AB6: -2.4 | AC6: x2 + | AE6: 5.8 | AF6: x - | AG6: 2.5 | AJ6: (Core or Nuclear) | AK6: 2 | AL6: -1 | AP6: 1
B7: (Extraction, Nuclear or Ignition Oven) | D7: 0.46 | E7: 0.5 | F7: 1.8 | G7: - | H7: 2 | I7: x | N7: Larger Sieve | O7: 7.01 | P7: 9 | Q7: 1.3 | R7: - | S7: 0.06 | T7: x | Y7: specimens) | AA7: 1.5 | AE7: 0 | AI7: Target | AJ7: 94% of Maximum | AK7: -1.01 | AL7: -4 | AM7: -0.056 | AN7: x2 - | AP7: 0.112 | AQ7: x + | AR7: 0.944
B8: Target | C8: JMF - Percent (%) | E8: 0.5 | G8: 0 | J8: Unacceptable | M8: Target | N8: JMF - Percent (%) | P8: 9 | R8: 0 | U8: Unacceptable | Y8: Target | AJ8: Theoretical | AL8: -4 | AP8: 0 | AS8: Unacceptable
Y9: 3 Million ESALS or more - 5% | AI9: PAYFACTOR FOR UNIFORM STRENGTH >4 % BETWEEN HIGHEST & LOWEST TESTS = | AS9: 0.98
Y10: 0.3 to 3 Million ESALS - 4%
C11: Average of Deviations from Target (without regard to signs) | O11: Average of Deviations from Target (without regard to signs) | Y11: 0.3 Million ESALS or Less - 3%
C12: CHARACTERISTICS | D12: 4 | F12: PAY | N12: CHARACTERISTICS | O12: 4 | Q12: PAY
D13: TESTS | F13: FACTOR | O13: TESTS | Q13: FACTOR | Y13: 5000 ADT or more - 5%
C14: ASPHALT CEMENT | D14: 0 | E14: 0.15 | G14: 1 | N14: GRADATION | O14: 0 | P14: 3.25 | R14: 1 | Y14: 1000 - 5000 ADT - 4%
C15: CONTENT | D15: 0.16 | E15: 0.21 | F15: 1.25 | G15: - | H15: 1.67 | I15: x | M15: % Passing No. 8 Sieve | O15: 3.26 | P15: 4.75 | Q15: 1.13 | R15: - | S15: 0.04 | T15: x | Y15: 1000 ADT or less - 3%
C16: (Digital Printout) | D16: 0.22 | E16: 0.23 | F16: 1.95 | G16: - | H16: 5 | I16: x | M16: thru No. 100 Sieve | O16: 4.76 | P16: 7.75 | Q16: 1.225 | R16: - | S16: 0.06 | T16: x
B17: Target | C17: JMF - Percent (%) | E17: 0.24 | G17: 0 | J17: Unacceptable | M17: Target | N17: JMF - Percent (%) | P17: 7.75 | R17: 0 | U17: Unacceptable
O20: Average of Deviations from Target (without regard to signs)
N21: CHARACTERISTICS | O21: 4 | Q21: PAY
O22: TESTS | Q22: FACTOR
N23: GRADATION | O23: 0 | P23: 1.5 | R23: 1
M24: % Passing No. 200 Sieve | O24: 1.51 | P24: 2.1 | Q24: 1.15 | R24: - | S24: 0.1 | T24: x
C25: Special Provision 708-3 and 2009 Standard Specifications: | M25: thru No. 100 Sieve | O25: 2.11 | P25: 3.3 | Q25: 1.255 | R25: - | S25: 0.15 | T25: x
C26: MESALs | D26: Nini | E26: Ndes | F26: Nmax | G26: MinNini | I26: MaxNini | M26: Target | N26: JMF - Percent (%) | P26: 3.3 | R26: 0 | U26: Unacceptable
C27: 0.3M- | D27: 6 | E27: 50 | F27: 75 | G27: 85.5 | I27: 91.5
C28: 0.3M+ | D28: 7 | E28: 75 | F28: 115 | G28: 85.5 | I28: 90.5
C29: 3M+ | D29: 8 | E29: 100 | F29: 160 | G29: 85.5 | I29: 89
C30: 10M+ | D30: 8 | E30: 100 | F30: 160 | G30: 85.5 | I30: 89
C31: 30M+ | D31: 9 | E31: 125 | F31: 205 | G31: 85.5 | I31: 89
C32: PG64 | D32: 6 | E32: 50 | F32: 96 | G32: 85.5 | I32: 91.5
C33: PG70 | D33: 7 | E33: 65 | F33: 96 | G33: 85.5 | I33: 90.5
C34: PG76 | D34: 8 | E34: 80 | F34: 96 | G34: 85.5 | I34: 89
C35: SMA-PG76 | D35: 0 | E35: 50 | F35: 96 | G35: 0 | I35: 0
C36: PFC-PG76 | D36: 0 | E36: 50 | F36: 96 | G36: 0 | I36: 0
C37: RBL-PG64 | D37: 0 | E37: 50 | F37: 96 | G37: 0 | I37: 0
C38: RIL-PG76E | D38: 0 | E38: 50 | F38: 97 | G38: 0 | I38: 0
C41: AASHTO T-209-12 Rices Precision
C42: Method | D42: Tolerance
C43: A | D43: 0.014
C44: B | D44: 0.018
C49: ROUNDING
A51: Cells E16 thru E26 | C51: Gradation % Ret. & Dev. | E51: 0 | F51: E51
A52: Cells F28 | C52: Gradation #200 & Dev. | E52: 1 | F52: E52
A53: Cell F30 | C53: Corrected % AC | E53: 1 | F53: E53
A54: Cell E39 | C54: Precision (+/- 0.2 %) | E54: 1 | F54: E54
A55: Cells E50, F50 | C55: Sand Equivalent | E55: 1 | F55: E55
C56: DENSITY (OHD L-45)
A57: Cells D60, E60, F60 | C57: Core Spec. Grav. ( Gmb ) | E57: 3 | F57: E57
C58: LAB MOLDED @ Ndes
A59: Cell L45 | C59: NINI Ratio | E59: 4 | F59: E59
A60: Cell L45 | C60: NINI LSMG | E60: 3 | F60: E60
A61: Cell M45 | C61: NINI % Density | E61: 1 | F61: E61
A62: Cell M46 | C62: Ndes % Density | E62: 1 | F62: E62
C63: MAX. SPECIFIC GRAVITY
A64: Cells K23, M23 | C64: Rice's Gravity | E64: 3 | F64: E64
A65: Cell L24 | C65: Avg. Rice Gravity (Gmm) | E65: 3 | F65: E65
A66: Cell L25 | C66: Eff. Spec. Grav. (Gse) | E66: 3 | F66: E66
C67: LAB MOLDED DENSITY
A68: Cell L28 | C68: New Gsb ( calculated ) | E68: 3 | F68: E68
A69: Cell L31 | C69: Max. Theo. Spec. Grav. | E69: 3 | F69: E69
A70: Cells K37, L37, M37 | C70: L.M. Spec. Grav. - Gmb | E70: 3 | F70: E70
A71: Cell L38 | C71: Avg. L.M. Spec. Grav. | E71: 3 | F71: E71
A72: Cell L39 | C72: % L.M. Density @ Ndes | E72: 1 | F72: E72
A73: Cell L40 | C73: % Air Voids | E73: =H73 -> 1 | F73: E73 | H73: =IF('Sublot 1'!O44=1,2,1) -> 1
A74: Cell L41 | C74: % V.M.A. | E74: 1 | F74: E74
C75: ROADWAY DENSITY
A76: Cell L44 | C76: Max. Theo. Sp. Gr. at JMF | E76: 3 | F76: E76
A77: Cells K55, L55, M55 | C77: Core Spec. Grav. ( Gmb ) | E77: 3 | F77: E77
A78: Cells K56, L56, M56 | C78: % Absorption | E78: 1 | F78: E78
A79: Cell L57 | C79: Avg. Core Sp. Gr. ( Gmb ) | E79: 3 | F79: E79
A80: Cells K58, L58, M58 | C80: % Roadway Density | E80: 1 | F80: E80
A81: Cell L60 | C81: % Avg. Roadway Density | E81: 1 | F81: E81

Sheet Instructions
A1: REQUIRED DATA FOR CALCULATIONS: (Enter on Sublot 1 Tab only) | C1: Information:
A3: Enter project information in the header cells B6 to L8. | C3: All data in blue text with yellow background is test data entry.
A5: Enter JMF gradations in cells C16 to C27.
A7: Enter JMF AC content in cell C29.
A9: Enter Tons for this Test Report in cell I9
A11: Enter Data from Design in cells I11 to I13
A13: Select the ESAL level or PG Grade in cell O8 using the dropdown selection list.
A15: Goto cells O39 and Q39 and enter %Density of GMM reqd. as listed on JMF.
A17: Goto cell O41 and enter min. %VMA as listed on JMF.
A19: Enter the SE limit in cell O51.
A21: Enter tolerances for gradataion and AC in cells S16 to S30.
A23: Enter 1 in cell O45 if PGmm by Pb at JMF in table 411:2. Leave blank if SP 411:17 on Contract or OHD L-14 modified after 5/27/2008.
A28: The clarification listed below was in an e-mail dated 08/25/2005.
A29: Bill Hawkins
A30: ODOT-Materials Division
A31: Independent Assurance Branch Supervisor
A33: Bill Gamel has asked me to forward this information out to the Residency Labs and Resident Engineers.
A35: In Special Provision 411-3QA(a-g)99, 06-08-05, Table 1, footnote 5 ,page (g), concerning asphalt densities, to read as follows:
A37: (5) It is the intent of the Specification that uniform compaction be obtained. In addition to average density requirements, the allowable range
A38: (difference between the highest and lowest densities in the affected lot) is limited to 4.0 percent on new construction and 5.0 percent on
A39: resurfacing. The density pay factors for lots exceeding these limits shall be limited to 0.98 or the density pay factors shown in Table I,
A40: whichever is less.
A41: Note: The "highest and lowest densities", mentioned above, refer the densities of three specimens per sublot averaged and considered
A42: as one test, as defined in Subsection 411.04 (n) 5 of these specifications.
A45: 2007-04-29 | B45: - Corrected formula's pointing to wrong cell's that would produce a penalty due to Average Density requirements on Sublot 3 and Sublot 4 Tabs.
A47: 2013-05-30 | B47: - Converted to Excel for 411-3QA 09 Special Provisions
A49: 2013-08-09 | B49: - Corrected density allowable range calculations between highest annd lowest in the affected lot
A51: 2014-02-01 | B51: - Corrected rounding in Cell M39 & L39 on all Sublot Tabs, found on HMA Excel Files Committee. Added Sublot #5.
A53: 2014-02-07 | B53: - Added IOC & Specimen Weight entry cells to Worksheet
A55: 2014-05-23 | B55: - Added Rounding Tables and OHD L-14 Calculation on Roadway Densities
A57: 2014-07-23 | B57: - Removed previous ESG consideration
A59: 2014-08-08 | B59: - Revised sand equivalent rounding
A61: 2014-08-19 | B61: - Added button to "Sublot 1" to make copies. E.g. Lot 1 to Lot 10. The current file is copied. Save before running.
A63: 2014-08-19 | B63: - Added button to "Pay Factors" to make a PDF file with the "Worksheet" and "Pay Factors".
A65: 2014-08-19 | B65: - Moved Compute Thickness button on Sublot sheets right of core heights.
A67: 2014-08-19 | B67: - Added formula to Sublot sheets I44. Labels the Gmm method used more clearly based on the value in Worksheet!O44.
A69: 2014-08-19 | B69: - Added Hypertext link to mix design when cell "Sublot 1!L8" is modified. Hyperlinks to page 1 of the mix design only if it exits and is approved for general use.
A71: 2014-08-28 | B71: - Updated PDF Print All and Specimen Number to text format
A73: 2014-09-11 | B73: - Revised Worksheet format, revised OHD L-45 to the 08/21/2014 revision, added signature line. Corrected 4% density average calc. on Pay Factor sheet.
A75: 2014-09-29 | B75: - Revised VMA to Field VMA requirements.
A77: 2014-10-30 | B77: - Corrected Pay Factor deviation calculations for less than four tests.
A79: 2014-11-04 | B79: - Corrected Pay Factor cell R12 reference
A81: 2014-12-19 | B81: - Corrected Air Voids in cell O40 to 0.1 place, removed inputs on Sublots 2 thru 5 & linked to Sublot 1, added dropdown box for Rices,
B82: corrected Combined Pay Factor to 0.01 place, & corrected error on Print to PDF button.
A84: 2015-02-26 | B84: - Corrected Rounding Error targets in cells K59, L59, M59, K60, L60, M60, K61, L61, M61, L62, K63, L63, M63, L65 in Sublot 1, 2, 3, 4, & 5
A86: 2016-06-21 | B86: - Corrected %AC Deviation calculation on Sublot 1, Sublot 2, Sublot 3, Sublot 4, & Sublot 5 in cell G30.
A88: 2018-10-24 | B88: - Added RIL-PG76E option to "Million ESALs or PG Grade" drop down list (cell O8) of "Sublot 1" sheet and added RIL-PG76E row and applicable specifications to "Special Provisions 708-3 and 2009 Standard Specifications" table on "Tables" sheet.

Sheet Disclaimer
A1: By using this file, you are agreeing to this License Agreement:
A3: The Oklahoma Department of Transportation (ODOT) does not provide technical support with respect to these files. Read the following disclaimer for terms of use pior to using this file.
A6: ODOT makes no warranty of any kind, express or implied, with respect to any file. ODOT makes no warranty that any file is marketable or fit for any particular purpose. A description of a file shall not be deemed to create an express warranty that the file conforms to that description. You agree to accept the files in the format provided.
A9: You assume all risk and liability for any losses, damages, claims, or expenses resulting from the use or possession of any file.
A12: You agree to indemnify, defend, and hold harmless ODOT and its officers, agents, and employees from and against any and all claims, suits, losses, damages, or costs, including reasonable attorney's fees, arising from or by reason of your use or possession of any file. This indemnification shall survive your acceptance of any file.
A15: Revisions or additions may occur at any time. You agree to indemnify, defend, and hold harmless ODOT and its officers, agents, and employees from and against any and all claims, suits, losses, damages, or costs, including reasonable attorney's fees, arising from the use of outdated files. This indemnification shall survive your acceptance of any file.
A18: The files are copyrighted by ODOT and may not be resold without the express written consent of ODOT.
